{"text_format":"3","workbook":"xlsx","n_sheets":1,"sheets":["Sheet1"],"not_rendered":{"external_links":1,"defined_names":1},"read":"whole","date_system":"1900"}

{"sheet":"Sheet1","index":0,"n_rows":651,"n_cols":5,"rows_kept":651}
[]
["№","Партнер","Код ЦБ","Адреса ТТ","Бренд ТТ"]
[1,"Аббасов С.М., ФОП","ЦБ10114789","м. Одеса, вул. 7-а Пересипська, буд. № 11а",{"$f":"VLOOKUP(C3,[1]Sheet1!$F:$G,2,0)","v":"Наша Ряба"}]
[2,"Аббасов С.М., ФОП","ЦБ10214091","м. Одеса, вул. Головна, буд. № 14",{"$f":"VLOOKUP(C4,[1]Sheet1!$F:$G,2,0)","v":"Наша Ряба"}]
[3,"АГРОПОБУТСЕРВІС, ТзОВ","ЦБ20061113","Львівська обл, Львівський р-н, м. Винники, вул. Винна Гора, буд. № 10В",{"$f":"VLOOKUP(C5,[1]Sheet1!$F:$G,2,0)","v":"М'ясомаркет"}]
[4,"АГРОПОБУТСЕРВІС, ТзОВ","ЦБ30105313","Львівська обл, м. Дрогобич, вул. Орлика Пилипа, буд. № 4","Без бренду"]
[5,"АГРОПОБУТСЕРВІС, ТзОВ","ЦБ30070379","Львівська обл, м. Львів, вул. Медової Печери, буд. № 45",{"$f":"VLOOKUP(C7,[1]Sheet1!$F:$G,2,0)","v":"М'ясомаркет"}]
[6,"АГРОПОБУТСЕРВІС, ТзОВ","ЦБ30028491","Львівська обл, м. Львів, просп. Чорновола В’ячеслава, буд. № 69",{"$f":"VLOOKUP(C8,[1]Sheet1!$F:$G,2,0)","v":"М'ясомаркет"}]
[7,"АГРОПОБУТСЕРВІС, ТзОВ","ЦБ20039537","м. Львів, вул. В.Великого, буд. № 89/91",{"$f":"VLOOKUP(C9,[1]Sheet1!$F:$G,2,0)","v":"М'ясомаркет"}]
[8,"АГРОПОБУТСЕРВІС, ТзОВ","ЦБ20052757","м. Львів, вул. Городоцька, буд. № 155, ринок Привокзальний",{"$f":"VLOOKUP(C10,[1]Sheet1!$F:$G,2,0)","v":"М'ясомаркет"}]
[9,"АГРОПОБУТСЕРВІС, ТзОВ","ЦБ20048008","м. Львів, вул. Петлюри, буд. № 7",{"$f":"VLOOKUP(C11,[1]Sheet1!$F:$G,2,0)","v":"М'ясомаркет"}]
[10,"АГРОПОБУТСЕРВІС, ТзОВ","ЦБ20027254","Львівська обл, Жовківський р-н, с. Надичі, Грушевського, буд. № 77",{"$f":"VLOOKUP(C12,[1]Sheet1!$F:$G,2,0)","v":"М'ясомаркет"}]
[11,"АГРОПОБУТСЕРВІС, ТзОВ","ЦБ30111096","м. Львів, вул. Хмельницького Богдана, буд. № 273","Без бренду"]
[12,"АККЕРМАН-МІТ, ТОВ","ЦБ30084069","Одеська обл, м. Білгород-Дністровський, вул. Миколаївська, буд. № 27","Без бренду"]
[13,"АККЕРМАН-МІТ, ТОВ","ЦБ20056295","Одеська обл, м. Чорноморськ, В.Шума, буд. № 17м","Без бренду"]
[14,"АККЕРМАН-МІТ, ТОВ","ЦБ20056297","Одеська обл, м. Білгород-Дністровський, вул. Перемоги, буд. № 3, (Мясо Маркет)","М'ясомаркет"]
[15,"АККЕРМАН-МІТ, ТОВ","ЦБ20064985","Одеська обл, м. Білгород-Дністровський, вул. Приморська, буд. № 37",{"$f":"VLOOKUP(C17,[1]Sheet1!$F:$G,2,0)","v":"М'ясомаркет"}]
[16,"АККЕРМАН-МІТ, ТОВ","ЦБ30097723","Одеська обл, Білгород-Дністровський р-н,  вул. Старовірменська, буд. № 5","Без бренду"]
[17,"АККЕРМАН-МІТ, ТОВ","ЦБ30110189","Одеська обл, Білгород-Дністровський р-н,  вул. Тираспольська 47","Без бренду"]
[18,"Багнєва Анна Олександрівна, ФОП","ЦБ30031860","Одеська обл, Березівський р-н, м. Березівка, вул. Грушевського Михайла, буд. № 2, м-н \"Визит\"",{"$f":"VLOOKUP(C20,[1]Sheet1!$F:$G,2,0)","v":"М'ясомаркет"}]
[19,"Баранова І.М., ФОП","ЦБ20056260","Одеська обл, смт Доброслав, вул. Центральна, буд. № 45",{"$f":"VLOOKUP(C21,[1]Sheet1!$F:$G,2,0)","v":"М'ясомаркет"}]
[20,"Веремчук О.Я., ФОП","ЦБ20028907","м. Рівне, вул. Міцкевича, 32","Без бренду"]
[21,"Веремчук О.Я., ФОП","ЦБ20032209","м. Рівне, вул. Корольова, 23","Без бренду"]
[22,"Веремчук О.Я., ФОП","ЦБ20062986","Рівне, Богоявленська,41","Без бренду"]
[23,"Веремчук О.Я., ФОП","ЦБ30064197","Рівне, Полуботка,8","Без бренду"]
[24,"Грузд Є.М., ФОП","ЦБ10202213","Київська обл, Білоцерківський р-н, м. Узин, вул. Соборна, буд. № 6А",{"$f":"VLOOKUP(C26,[1]Sheet1!$F:$G,2,0)","v":"Їжа Свіжа"}]
[25,"Диадема-Консалтинг, ВКФ ПП","ЦБ10240744","м. Миколаїв, пр-т. Богоявленський, буд. № 312",{"$f":"VLOOKUP(C27,[1]Sheet1!$F:$G,2,0)","v":"Їжа Свіжа"}]
[26,"Диадема-Консалтинг, ВКФ ПП","ЦБ20042227","м. Миколаїв, вул. Генерала Карпенко, буд. № 2/1, («Їжа свіжа» )",{"$f":"VLOOKUP(C28,[1]Sheet1!$F:$G,2,0)","v":"Їжа Свіжа"}]
[27,"Диадема-Консалтинг, ВКФ ПП","ЦБ20020606","м. Миколаїв, вул. Архітектора Старова, буд. № 2",{"$f":"VLOOKUP(C29,[1]Sheet1!$F:$G,2,0)","v":"Їжа Свіжа"}]
[28,"Диадема-Консалтинг, ВКФ ПП","ЦБ20020616","м. Миколаїв, пр-т. Богоявленський, буд. № 340",{"$f":"VLOOKUP(C30,[1]Sheet1!$F:$G,2,0)","v":"Їжа Свіжа"}]
[29,"Диадема-Консалтинг, ВКФ ПП","ЦБ20020617","м. Миколаїв, пр-т. Богоявленський, буд. № 340/15",{"$f":"VLOOKUP(C31,[1]Sheet1!$F:$G,2,0)","v":"Їжа Свіжа"}]
[30,"Диадема-Консалтинг, ВКФ ПП","ЦБ20020650","м. Миколаїв, вул. Олега Кравця, буд. № 223",{"$f":"VLOOKUP(C32,[1]Sheet1!$F:$G,2,0)","v":"Наша Ряба"}]
[31,"Диадема-Консалтинг, ВКФ ПП","ЦБ20020653","м. Миколаїв, вул. Карпенко, буд. № 20/1",{"$f":"VLOOKUP(C33,[1]Sheet1!$F:$G,2,0)","v":"Наша Ряба"}]
[32,"Диадема-Консалтинг, ВКФ ПП","ЦБ20020585","м. Миколаїв, вул. Металургів, буд. № 32",{"$f":"VLOOKUP(C34,[1]Sheet1!$F:$G,2,0)","v":"Наша Ряба"}]
[33,"Диадема-Консалтинг, ВКФ ПП","ЦБ20020597","м. Миколаїв, пр-т. Миру, буд. № 58",{"$f":"VLOOKUP(C35,[1]Sheet1!$F:$G,2,0)","v":"Їжа Свіжа"}]
[34,"Диадема-Консалтинг, ВКФ ПП","ЦБ20020621","м. Миколаїв, вул. Озерна, буд. № 17/1, пав.27",{"$f":"VLOOKUP(C36,[1]Sheet1!$F:$G,2,0)","v":"Їжа Свіжа"}]
[35,"Диадема-Консалтинг, ВКФ ПП","ЦБ10174891","Херсонська обл, Білозерський р-н, с. Дар'ївка, вул. Торгова площадь, буд. № 11",{"$f":"VLOOKUP(C37,[1]Sheet1!$F:$G,2,0)","v":"Наша Ряба"}]
[36,"Диадема-Консалтинг, ВКФ ПП","ЦБ10174165","Херсонська обл, Херсон, смт Зеленівка, вул. Миколи Міхновського, буд. № 9",{"$f":"VLOOKUP(C38,[1]Sheet1!$F:$G,2,0)","v":"Наша Ряба"}]
[37,"Диадема-Консалтинг, ВКФ ПП","ЦБ10145076","м. Херсон, вул. 49-ї Гвардійської дивізії, буд. № 22а",{"$f":"VLOOKUP(C39,[1]Sheet1!$F:$G,2,0)","v":"М'ясомаркет"}]
[38,"Диадема-Консалтинг, ВКФ ПП","ЦБ10145075","м. Херсон, вул. Джона Говарда, буд. № 28а",{"$f":"VLOOKUP(C40,[1]Sheet1!$F:$G,2,0)","v":"М'ясомаркет"}]
[39,"Диадема-Консалтинг, ВКФ ПП","ЦБ10040012","м. Херсон, вул. Університетська, буд. № 122",{"$f":"VLOOKUP(C41,[1]Sheet1!$F:$G,2,0)","v":"М'ясомаркет"}]
[40,"Диадема-Консалтинг, ВКФ ПП","ЦБ10232464","м. Херсон, вул. Л.Замельгофа, буд. № 1",{"$f":"VLOOKUP(C42,[1]Sheet1!$F:$G,2,0)","v":"М'ясомаркет"}]
[41,"Диадема-Консалтинг, ВКФ ПП","ЦБ10243529","м. Херсон, вул. Комкова, буд. № 80Б",{"$f":"VLOOKUP(C43,[1]Sheet1!$F:$G,2,0)","v":"Наша Ряба"}]
[42,"Диадема-Консалтинг, ВКФ ПП","ЦБ10196093","м. Херсон, вул. 200-річчя Херсона, буд. № 2А",{"$f":"VLOOKUP(C44,[1]Sheet1!$F:$G,2,0)","v":"М'ясомаркет"}]
[43,"Диадема-Консалтинг, ВКФ ПП","ЦБ10228343","м. Херсон, вул. 200-річчя Херсона, буд. № 32А",{"$f":"VLOOKUP(C45,[1]Sheet1!$F:$G,2,0)","v":"М'ясомаркет"}]
[44,"Диадема-Консалтинг, ВКФ ПП","ЦБ30033078","м. Миколаїв, вул. Космонавтів, буд. № 76/1, зупинка Площа Перемоги",{"$f":"VLOOKUP(C46,[1]Sheet1!$F:$G,2,0)","v":"Їжа Свіжа"}]
[45,"Диадема-Консалтинг, ВКФ ПП","ЦБ20042121","м. Миколаїв, вул. Одеське шосе, буд. № 88",{"$f":"VLOOKUP(C47,[1]Sheet1!$F:$G,2,0)","v":"М'ясомаркет"}]
[46,"Диадема-Консалтинг, ВКФ ПП","ЦБ20046346","Миколаївська область  Миколаїв,  пр.Центральний, 92","Без бренду"]
[47,"Диадема-Консалтинг, ВКФ ПП","ЦБ20054199","м. Миколаїв, просп. Героїв України, буд. № 20к",{"$f":"VLOOKUP(C49,[1]Sheet1!$F:$G,2,0)","v":"М'ясомаркет"}]
[48,"Диадема-Консалтинг, ВКФ ПП","ЦБ20046347","м. Миколаїв, пр-т. Центральний, буд. № 26",{"$f":"VLOOKUP(C50,[1]Sheet1!$F:$G,2,0)","v":"М'ясомаркет"}]
[49,"Диадема-Консалтинг, ВКФ ПП","ЦБ30019612","м. Миколаїв, просп. Корабелів, буд. № 15/1",{"$f":"VLOOKUP(C51,[1]Sheet1!$F:$G,2,0)","v":"Їжа Свіжа"}]
[50,"Диадема-Консалтинг, ВКФ ПП","ЦБ30023180","Миколаївська обл, Миколаївський р-н, м. Нова Одеса, вул. Центральна, буд. № 204",{"$f":"VLOOKUP(C52,[1]Sheet1!$F:$G,2,0)","v":"М'ясомаркет"}]
[51,"Диадема-Консалтинг, ВКФ ПП","ЦБ20078535","м. Миколаїв, вул. Космонавтів, буд. № 126",{"$f":"VLOOKUP(C53,[1]Sheet1!$F:$G,2,0)","v":"Українське Курча"}]
[52,"Диадема-Консалтинг, ВКФ ПП","ЦБ30081489","м. Миколаїв, вул. Космонавтів, буд. № 60",{"$f":"VLOOKUP(C54,[1]Sheet1!$F:$G,2,0)","v":"М'ясомаркет"}]
[53,"Диадема-Консалтинг, ВКФ ПП","ЦБ30081936","м. Херсон, просп. Святих Кирила та Мефодія, буд. № 15","Без бренду"]
[54,"Диадема-Консалтинг, ВКФ ПП","ЦБ30082725","м. Миколаїв, вул. 3-я Слобідська, буд. № 54",{"$f":"VLOOKUP(C56,[1]Sheet1!$F:$G,2,0)","v":"Їжа Свіжа "}]
[55,"Диадема-Консалтинг, ВКФ ПП","ЦБ30102439","м. Миколаїв, проспект Героїв України, 13ж",{"$f":"VLOOKUP(C57,[1]Sheet1!$F:$G,2,0)","v":"М'ясомаркет"}]
[56,"Диадема-Консалтинг, ВКФ ПП","ЦБ30109068","м. Миколаїв, проспект Корабелів,  12/11","Без бренду"]
[57,"Дистриб'юшн рітейл компані, ТОВ","ЦБ10091651","23800, Вінницька обл, Теплицький р-н, смт Теплик, Незалежності, буд. № 36",{"$f":"VLOOKUP(C59,[1]Sheet1!$F:$G,2,0)","v":"Наша Ряба"}]
[58,"Дистриб'юшн рітейл компані, ТОВ","ЦБ10078454","Вінницька обл, Барський р-н, с-ще Бар, пл. Памяти, буд. № 21",{"$f":"VLOOKUP(C60,[1]Sheet1!$F:$G,2,0)","v":"Наша Ряба"}]
[59,"Дистриб'юшн рітейл компані, ТОВ","ЦБ30014100","Вінницька обл, Вінницький р-н, смт Вороновиця, вул. Козацький шлях, буд. № 48",{"$f":"VLOOKUP(C61,[1]Sheet1!$F:$G,2,0)","v":"М'ясомаркет"}]
[60,"Дистриб'юшн рітейл компані, ТОВ","ЦБ10012466","Вінницька обл, Вінницький р-н, смт Стрижавка, вул. 40-річчя Перемоги, буд. № 14",{"$f":"VLOOKUP(C62,[1]Sheet1!$F:$G,2,0)","v":"Їжа Свіжа"}]
[61,"Дистриб'юшн рітейл компані, ТОВ","ЦБ10035028","Вінницька обл, Гайсинський р-н, м. Гайсин, вул. 1-го Травня, буд. № 31",{"$f":"VLOOKUP(C63,[1]Sheet1!$F:$G,2,0)","v":"Їжа Свіжа"}]
[62,"Дистриб'юшн рітейл компані, ТОВ","ЦБ20043010","Вінницька обл, Гайсинський р-н, м. Гайсин, вул. 1 Травня, буд. № 46",{"$f":"VLOOKUP(C64,[1]Sheet1!$F:$G,2,0)","v":"М'ясомаркет"}]
[63,"Дистриб'юшн рітейл компані, ТОВ","ЦБ10152198","Вінницька обл, Гайсинський р-н, м. Гайсин, вул. 1-го Травня, буд. № 54Б",{"$f":"VLOOKUP(C65,[1]Sheet1!$F:$G,2,0)","v":"Їжа Свіжа"}]
[64,"Дистриб'юшн рітейл компані, ТОВ","ЦБ10027511","Вінницька обл, Гайсинський р-н, м. Гайсин, ул. 1-Травня, буд. № 73",{"$f":"VLOOKUP(C66,[1]Sheet1!$F:$G,2,0)","v":"Наша Ряба"}]
[65,"Дистриб'юшн рітейл компані, ТОВ","ЦБ30064786","Вінницька обл, м. Жмеринка, вул. Франка Івана, буд. № 2Б",{"$f":"VLOOKUP(C67,[1]Sheet1!$F:$G,2,0)","v":"М'ясомаркет"}]
[66,"Дистриб'юшн рітейл компані, ТОВ","ЦБ10170167","Вінницька обл, Жмеринський р-н, смт Браїлів, вул. Монастирська, буд. № 24",{"$f":"VLOOKUP(C68,[1]Sheet1!$F:$G,2,0)","v":"Їжа Свіжа"}]
[67,"Дистриб'юшн рітейл компані, ТОВ","ЦБ10139165","Вінницька обл, Іллінецький р-н, м. Іллінці, вул. Європейська, буд. № 27",{"$f":"VLOOKUP(C69,[1]Sheet1!$F:$G,2,0)","v":"М'ясомаркет"}]
[68,"Дистриб'юшн рітейл компані, ТОВ","ЦБ10012411","Вінницька обл, Іллінецький р-н, м. Іллінці, вул. Європейська, буд. № 3",{"$f":"VLOOKUP(C70,[1]Sheet1!$F:$G,2,0)","v":"Їжа Свіжа"}]
[69,"Дистриб'юшн рітейл компані, ТОВ","ЦБ10014038","Вінницька обл, Калинівський р-н, м. Калинівка, вул. Незалежності, буд. № 55/А",{"$f":"VLOOKUP(C71,[1]Sheet1!$F:$G,2,0)","v":"Наша Ряба"}]
[70,"Дистриб'юшн рітейл компані, ТОВ","ЦБ10025404","Вінницька обл, Калинівський р-н, м. Калинівка, вул. Промислова, буд. № 4",{"$f":"VLOOKUP(C72,[1]Sheet1!$F:$G,2,0)","v":"Наша Ряба"}]
[71,"Дистриб'юшн рітейл компані, ТОВ","ЦБ20034731","Вінницька обл, Калинівський р-н, с. Іванів, вул. Гагаріна",{"$f":"VLOOKUP(C73,[1]Sheet1!$F:$G,2,0)","v":"Наша Ряба"}]
[72,"Дистриб'юшн рітейл компані, ТОВ","ЦБ10090462","Вінницька обл, Крижопільський р-н, смт Крижопіль, вул. Д.Нечая, буд. № 10А",{"$f":"VLOOKUP(C74,[1]Sheet1!$F:$G,2,0)","v":"Українське курча"}]
[73,"Дистриб'юшн рітейл компані, ТОВ","ЦБ30046469","Вінницька обл, Тульчинський р-н, смт Крижопіль, вул. Героїв України, буд. № 72А",{"$f":"VLOOKUP(C75,[1]Sheet1!$F:$G,2,0)","v":"М'ясомаркет"}]
[74,"Дистриб'юшн рітейл компані, ТОВ","ЦБ10134297","Вінницька обл, Липовецький р-н, м. Липовець, вул. Василя Липківського, буд. № 34",{"$f":"VLOOKUP(C76,[1]Sheet1!$F:$G,2,0)","v":"Наша Ряба"}]
[75,"Дистриб'юшн рітейл компані, ТОВ","ЦБ10013451","Вінницька обл, Літинський р-н, смт Літин, вул. Соборна, буд. № 4",{"$f":"VLOOKUP(C77,[1]Sheet1!$F:$G,2,0)","v":"Українське курча"}]
[76,"Дистриб'юшн рітейл компані, ТОВ","ЦБ10021348","Вінницька обл, м. Жмеринка, ул. Володимира Великого, буд. № 1",{"$f":"VLOOKUP(C78,[1]Sheet1!$F:$G,2,0)","v":"М'ясомаркет"}]
[77,"Дистриб'юшн рітейл компані, ТОВ","ЦБ10025079","Вінницька обл, м. Козятин, вул. Січових Стрільців, буд. № 12",{"$f":"VLOOKUP(C79,[1]Sheet1!$F:$G,2,0)","v":"Їжа Свіжа"}]
[78,"Дистриб'юшн рітейл компані, ТОВ","ЦБ10021185","Вінницька обл, м. Козятин, вул.. 8 Захисників Україні,48А",{"$f":"VLOOKUP(C80,[1]Sheet1!$F:$G,2,0)","v":"М'ясомаркет"}]
[79,"Дистриб'юшн рітейл компані, ТОВ","ЦБ10112045","Вінницька обл, м. Ладижин, вул. П. Кравчика, буд. № 9",{"$f":"VLOOKUP(C81,[1]Sheet1!$F:$G,2,0)","v":"М'ясомаркет"}]
[80,"Дистриб'юшн рітейл компані, ТОВ","ЦБ20030696","Вінницька обл, м. Ладижин, вул. Процишина, буд. № 91",{"$f":"VLOOKUP(C82,[1]Sheet1!$F:$G,2,0)","v":"Їжа Свіжа"}]
[81,"Дистриб'юшн рітейл компані, ТОВ","ЦБ10012226","Вінницька обл, м. Ладижин, вул. Будівельників, буд. № 28",{"$f":"VLOOKUP(C83,[1]Sheet1!$F:$G,2,0)","v":"Їжа Свіжа"}]
[82,"Дистриб'юшн рітейл компані, ТОВ","ЦБ20026027","Вінницька обл, м. Хмільник, вул. В'ячеслава Чорновола, буд. № 83",{"$f":"VLOOKUP(C84,[1]Sheet1!$F:$G,2,0)","v":"Їжа Свіжа"}]
[83,"Дистриб'юшн рітейл компані, ТОВ","ЦБ10181566","Вінницька обл, Мурованокуриловецький р-н, смт Муровані Курилівці, вул. Єдності, буд. № 4",{"$f":"VLOOKUP(C85,[1]Sheet1!$F:$G,2,0)","v":"Наша Ряба"}]
[84,"Дистриб'юшн рітейл компані, ТОВ","ЦБ10174722","Вінницька обл, Немирівський р-н, м. Немирів, вул. Горького, буд. № 92а",{"$f":"VLOOKUP(C86,[1]Sheet1!$F:$G,2,0)","v":"Їжа Свіжа"}]
[85,"Дистриб'юшн рітейл компані, ТОВ","ЦБ10021624","Вінницька обл, Піщанський р-н, смт Піщанка, вул. Центральна, буд. № 25",{"$f":"VLOOKUP(C87,[1]Sheet1!$F:$G,2,0)","v":"М'ясомаркет"}]
[86,"Дистриб'юшн рітейл компані, ТОВ","ЦБ10064410","Вінницька обл, Погребищенський р-н, м. Погребище, вул. Козацького, буд. № 6",{"$f":"VLOOKUP(C88,[1]Sheet1!$F:$G,2,0)","v":"Їжа Свіжа"}]
[87,"Дистриб'юшн рітейл компані, ТОВ","ЦБ10093309","Вінницька обл, Погребищенський р-н, с-ще Погребище Перше, вул. Богдана Хмельницького, буд. № 102, корпус А",{"$f":"VLOOKUP(C89,[1]Sheet1!$F:$G,2,0)","v":"Їжа Свіжа"}]
[88,"Дистриб'юшн рітейл компані, ТОВ","ЦБ10012311","Вінницька обл, Тиврівський р-н, м. Гнівань, вул. Соборна, буд. № 58",{"$f":"VLOOKUP(C90,[1]Sheet1!$F:$G,2,0)","v":"Наша Ряба"}]
[89,"Дистриб'юшн рітейл компані, ТОВ","ЦБ10013281","Вінницька обл, Тиврівський р-н, смт Тиврів, ул. Тиверська, буд. № 38",{"$f":"VLOOKUP(C91,[1]Sheet1!$F:$G,2,0)","v":"Наша Ряба"}]
[90,"Дистриб'юшн рітейл компані, ТОВ","ЦБ10020380","Вінницька обл, Томашпільський р-н, смт Вапнярка, вул. Незалежності, буд. № 175",{"$f":"VLOOKUP(C92,[1]Sheet1!$F:$G,2,0)","v":"Наша Ряба"}]
[91,"Дистриб'юшн рітейл компані, ТОВ","ЦБ10018738","Вінницька обл, Тростянецький р-н, с. Ободівка, ул. Леніна, буд. № 43А",{"$f":"VLOOKUP(C93,[1]Sheet1!$F:$G,2,0)","v":"Наша Ряба"}]
[92,"Дистриб'юшн рітейл компані, ТОВ","ЦБ10022462","Вінницька обл, Тростянецький р-н, смт Тростянець, вул. Соборна, буд. № 40Б",{"$f":"VLOOKUP(C94,[1]Sheet1!$F:$G,2,0)","v":"Наша Ряба"}]
[93,"Дистриб'юшн рітейл компані, ТОВ","ЦБ10088870","Вінницька обл, Тульчинський р-н, м. Тульчин, вул. Ростислава Покиньчереди, буд. № 4",{"$f":"VLOOKUP(C95,[1]Sheet1!$F:$G,2,0)","v":"Наша Ряба"}]
[94,"Дистриб'юшн рітейл компані, ТОВ","ЦБ10014102","Вінницька обл, Тульчинський р-н, м. Тульчин, вул. Леонтовича, буд. № 100",{"$f":"VLOOKUP(C96,[1]Sheet1!$F:$G,2,0)","v":"Їжа Свіжа"}]
[95,"Дистриб'юшн рітейл компані, ТОВ","ЦБ10222652","Вінницька обл, Тульчинський р-н, м. Тульчин, вул. Леонтовича, буд. № 166",{"$f":"VLOOKUP(C97,[1]Sheet1!$F:$G,2,0)","v":"Наша Ряба"}]
[96,"Дистриб'юшн рітейл компані, ТОВ","ЦБ10012749","Вінницька обл, Тульчинський р-н, м. Тульчин, ул. Колхозная, 25 р-к\"Колхозный\" мясн.пав.№22",{"$f":"VLOOKUP(C98,[1]Sheet1!$F:$G,2,0)","v":"Наша Ряба"}]
[97,"Дистриб'юшн рітейл компані, ТОВ","ЦБ10014014","Вінницька обл, Тульчинський р-н, смт Шпиків, вул. Незалежності, буд. № 62",{"$f":"VLOOKUP(C99,[1]Sheet1!$F:$G,2,0)","v":"Наша Ряба"}]
[98,"Дистриб'юшн рітейл компані, ТОВ","ЦБ10109565","Вінницька обл, Чернівецький р-н, смт Чернівці, вул. Святомиколаївська, буд. № 170а",{"$f":"VLOOKUP(C100,[1]Sheet1!$F:$G,2,0)","v":"Наша Ряба"}]
[99,"Дистриб'юшн рітейл компані, ТОВ","ЦБ10094201","Вінницька обл, Шаргородський р-н, м. Шаргород, вул. Героїв Майдану, буд. № 239",{"$f":"VLOOKUP(C101,[1]Sheet1!$F:$G,2,0)","v":"Наша Ряба"}]
[100,"Дистриб'юшн рітейл компані, ТОВ","ЦБ10119490","Вінницька обл, Ямпільський р-н, м. Ямпіль, вул. Свободи, буд. № 140",{"$f":"VLOOKUP(C102,[1]Sheet1!$F:$G,2,0)","v":"Наша Ряба"}]
[101,"Дистриб'юшн рітейл компані, ТОВ","ЦБ10011422","м. Вінниця, вул. Коновальця Євгена, буд. № 7",{"$f":"VLOOKUP(C103,[1]Sheet1!$F:$G,2,0)","v":"М'ясомаркет"}]
[102,"Дистриб'юшн рітейл компані, ТОВ","ЦБ10038700","м. Вiнниця, вул. Келецька, буд. № 122/А",{"$f":"VLOOKUP(C104,[1]Sheet1!$F:$G,2,0)","v":"Українське курча"}]
[103,"Дистриб'юшн рітейл компані, ТОВ","ЦБ10011355","м. Вiнниця, вул. Келецька, буд. № 41",{"$f":"VLOOKUP(C105,[1]Sheet1!$F:$G,2,0)","v":"Їжа Свіжа"}]
[104,"Дистриб'юшн рітейл компані, ТОВ","ЦБ10034775","м. Вiнниця, вул. Коцюбинського, буд. № 37",{"$f":"VLOOKUP(C106,[1]Sheet1!$F:$G,2,0)","v":"М'ясомаркет"}]
[105,"Дистриб'юшн рітейл компані, ТОВ","ЦБ10011421","м. Вiнниця, вул. Пирогова, буд. № 113",{"$f":"VLOOKUP(C107,[1]Sheet1!$F:$G,2,0)","v":"Їжа Свіжа"}]
[106,"Дистриб'юшн рітейл компані, ТОВ","ЦБ10126320","м. Вiнниця, вул. Пирогова, буд. № 49а",{"$f":"VLOOKUP(C108,[1]Sheet1!$F:$G,2,0)","v":"Наша Ряба"}]
[107,"Дистриб'юшн рітейл компані, ТОВ","ЦБ10012436","м. Вiнниця, вул. Пирогова, буд. № 51",{"$f":"VLOOKUP(C109,[1]Sheet1!$F:$G,2,0)","v":"Наша Ряба"}]
[108,"Дистриб'юшн рітейл компані, ТОВ","ЦБ10012047","м. Вiнниця, вул. Порика, буд. № 21",{"$f":"VLOOKUP(C110,[1]Sheet1!$F:$G,2,0)","v":"Наша Ряба"}]
[109,"Дистриб'юшн рітейл компані, ТОВ","ЦБ10137884","м. Вiнниця, вул. Казимира Малевича, буд. № 2-б",{"$f":"VLOOKUP(C111,[1]Sheet1!$F:$G,2,0)","v":"Наша Ряба"}]
[110,"Дистриб'юшн рітейл компані, ТОВ","ЦБ10138229","м. Вінниця, вул. Бучми, буд. № 143",{"$f":"VLOOKUP(C112,[1]Sheet1!$F:$G,2,0)","v":"М'ясомаркет"}]
[111,"Дистриб'юшн рітейл компані, ТОВ","ЦБ30020589","м. Вінниця, просп. Юності, буд. № 20",{"$f":"VLOOKUP(C113,[1]Sheet1!$F:$G,2,0)","v":"М'ясомаркет"}]
[112,"Дистриб'юшн рітейл компані, ТОВ","ЦБ10012474","м. Вінниця, вул. 600-річчя, буд. № 52",{"$f":"VLOOKUP(C114,[1]Sheet1!$F:$G,2,0)","v":"М'ясомаркет"}]
[113,"Дистриб'юшн рітейл компані, ТОВ","ЦБ10063407","м. Вiнниця, ул. Ивана Богуна, буд. № 37",{"$f":"VLOOKUP(C115,[1]Sheet1!$F:$G,2,0)","v":"Українське курча"}]
[114,"Дистриб'юшн рітейл компані, ТОВ","ЦБ10011420","м. Вiнниця, ул. Матроса Кішки/Пирогова, буд. № 49",{"$f":"VLOOKUP(C116,[1]Sheet1!$F:$G,2,0)","v":"Їжа Свіжа"}]
[115,"Дистриб'юшн рітейл компані, ТОВ","ЦБ10015943","м. Вінниця, вул. Синьоводська, буд. № 142",{"$f":"VLOOKUP(C117,[1]Sheet1!$F:$G,2,0)","v":"Наша Ряба"}]
[116,"Дистриб'юшн рітейл компані, ТОВ","ЦБ10099294","м. Вінниця, вул. Академіка Янгеля, буд. № 13",{"$f":"VLOOKUP(C118,[1]Sheet1!$F:$G,2,0)","v":"Наша Ряба"}]
[117,"Дистриб'юшн рітейл компані, ТОВ","ЦБ20046666","м. Вінниця, вул. Євгена Коновальця, буд. № 5","Без бренду"]
[118,"Дистриб'юшн рітейл компані, ТОВ","ЦБ10011374","м. Вінниця, вул. Дмитра Майбороди, буд. № 9",{"$f":"VLOOKUP(C120,[1]Sheet1!$F:$G,2,0)","v":"Українське курча"}]
[119,"Дистриб'юшн рітейл компані, ТОВ","ЦБ10011389","м. Вінниця, вул. Замостянська, буд. № 12",{"$f":"VLOOKUP(C121,[1]Sheet1!$F:$G,2,0)","v":"М'ясомаркет"}]
[120,"Дистриб'юшн рітейл компані, ТОВ","ЦБ10233722","м. Вінниця, вул. Келецька, буд. № 57",{"$f":"VLOOKUP(C122,[1]Sheet1!$F:$G,2,0)","v":"Наша Ряба"}]
[121,"Дистриб'юшн рітейл компані, ТОВ","ЦБ10018812","м. Вінниця, вул. Князів Коріатовичів, буд. № 168",{"$f":"VLOOKUP(C123,[1]Sheet1!$F:$G,2,0)","v":"Наша Ряба"}]
[122,"Дистриб'юшн рітейл компані, ТОВ","ЦБ10214703","м. Вінниця, вул. Коцюбинського, буд. № 13",{"$f":"VLOOKUP(C124,[1]Sheet1!$F:$G,2,0)","v":"Наша Ряба"}]
[123,"Дистриб'юшн рітейл компані, ТОВ","ЦБ10028513","м. Вінниця, вул. Максима Шимка, буд. № 14",{"$f":"VLOOKUP(C125,[1]Sheet1!$F:$G,2,0)","v":"Наша Ряба"}]
[124,"Дистриб'юшн рітейл компані, ТОВ","ЦБ10244823","м. Вінниця, вул. Пирогова, буд. № 49",{"$f":"VLOOKUP(C126,[1]Sheet1!$F:$G,2,0)","v":"Наша Ряба"}]
[125,"Дистриб'юшн рітейл компані, ТОВ","ЦБ20056659","м. Вінниця, вул. Пирогова, буд. № 91",{"$f":"VLOOKUP(C127,[1]Sheet1!$F:$G,2,0)","v":"М'ясомаркет"}]
[126,"Дистриб'юшн рітейл компані, ТОВ","ЦБ10011387","м. Вінниця, вул. Хмельницьке Шосе, буд. № 75/4",{"$f":"VLOOKUP(C128,[1]Sheet1!$F:$G,2,0)","v":"Наша Ряба"}]
[127,"Дистриб'юшн рітейл компані, ТОВ","ЦБ30066781","Вінницька обл, Вінницький р-н, с. Вінницькі Хутори, вул. Сагайдачного, буд. № 89",{"$f":"VLOOKUP(C129,[1]Sheet1!$F:$G,2,0)","v":"М'ясомаркет"}]
[128,"Дистриб'юшн рітейл компані, ТОВ","ЦБ30107339","ДРК, ТОВ (Кам’янець-Подільський, Харченка, 35Б) ДМ","Без бренду"]
[129,"Дистриб'юшн рітейл компані, ТОВ","ЦБ30107083","м. Хмельницький, вул. Вайсера, буд. № 6, Молочний павільйон № 66","Без бренду"]
[130,"Дистриб'юшн рітейл компані, ТОВ","ЦБ30107171","м. Хмельницький, вул. Вайсера, буд. № 6, Молочний павільйон № 71","Без бренду"]
[131,"Дистриб'юшн рітейл компані, ТОВ","ЦБ30107081","м. Хмельницький, вул. Вайсера, буд. № 6, Мясний павільйон № 1","Без бренду"]
[132,"Дистриб'юшн рітейл компані, ТОВ","ЦБ10029808","Кам’янець-Подільський, Грушевського, 25",{"$f":"VLOOKUP(C134,[1]Sheet1!$F:$G,2,0)","v":"Наша Ряба"}]
[133,"Дистриб'юшн рітейл компані, ТОВ","ЦБ30107094","м. Хмельницький, вул. Миру, буд. № 69","Без бренду"]
[134,"Дистриб'юшн рітейл компані, ТОВ","ЦБ30107091","м. Хмельницький, вул. Панаса Мирного, буд. № 86/а","Без бренду"]
[135,"Дистриб'юшн рітейл компані, ТОВ","ЦБ30107093","м. Хмельницький, вул. Хотовицького, буд. № 8","Без бренду"]
[136,"Дистриб'юшн рітейл компані, ТОВ","ЦБ30107079","Хмельницька обл, м. Кам'янець-Подільський, вул. Кн.Коріатовичів, буд. № 24","Без бренду"]
[137,"Дистриб'юшн рітейл компані, ТОВ","ЦБ30107086","м. Хмельницький, вул. Олександра Кушнірука, буд. № 6/1","Без бренду"]
[138,"Дистриб'юшн рітейл компані, ТОВ","ЦБ30107170","Хмельницька область, м.Хмельницький, вул.Гарнізона, буд. № 4/1","Без бренду"]
[139,"Дистриб'юшн рітейл компані, ТОВ","ЦБ30086366","Вінницька обл., Рахни Лісові, вул.Паркова  29",{"$f":"VLOOKUP(C141,[1]Sheet1!$F:$G,2,0)","v":"Їжа Свіжа"}]
[140,"Дистриб'юшн рітейл компані, ТОВ","ЦБ30096089","Вінниця, 600 річчя, 52",{"$f":"VLOOKUP(C142,[1]Sheet1!$F:$G,2,0)","v":"Їжа Свіжа"}]
[141,"Дистриб'юшн рітейл компані, ТОВ","ЦБ30046497","м. Віннця, Левка Лукяненка, 137",{"$f":"VLOOKUP(C143,[1]Sheet1!$F:$G,2,0)","v":" М'ясомаркет"}]
[142,"Дистриб'юшн рітейл компані, ТОВ","ЦБ10152198","с. Ободівка вул Соборна 43",{"$f":"VLOOKUP(C144,[1]Sheet1!$F:$G,2,0)","v":"Їжа Свіжа"}]
[143,"Добробут-Олександрія, ТОВ","ЦБ10128892","Дніпропетровська обл, П'ятихатський р-н, м. П'ятихатки, вул. Козацька, 38-41 (р-н готелю \"Світанок\")",{"$f":"VLOOKUP(C145,[1]Sheet1!$F:$G,2,0)","v":"М'ясомаркет"}]
[144,"Добробут-Олександрія, ТОВ","ЦБ10175259","Кіровоградська обл., м. Олександрія, вул. Братська, біля буд.30",{"$f":"VLOOKUP(C146,[1]Sheet1!$F:$G,2,0)","v":"М'ясомаркет"}]
[145,"Добробут-Олександрія, ТОВ","ЦБ10100180","Полтавська обл, Глобинський р-н, смт Градизьк, вул. Київська, буд. № 43/54",{"$f":"VLOOKUP(C147,[1]Sheet1!$F:$G,2,0)","v":"М'ясомаркет"}]
[146,"Добробут-Олександрія, ТОВ","ЦБ10013935","Кіровоградська обл., м. Олександрія, пр-т. Соборний, буд. № 6",{"$f":"VLOOKUP(C148,[1]Sheet1!$F:$G,2,0)","v":"М'ясомаркет"}]
[147,"Добробут-Олександрія, ТОВ","ЦБ10159415","Кіровоградська обл, м. Олександрія, вул. 6-го Грудня, буд. № 135",{"$f":"VLOOKUP(C149,[1]Sheet1!$F:$G,2,0)","v":"М'ясомаркет"}]
[148,"Добробут-Олександрія, ТОВ","ЦБ10012747","Кіровоградська обл., м. Світловодськ, вул. Героїв України, буд. № 10",{"$f":"VLOOKUP(C150,[1]Sheet1!$F:$G,2,0)","v":"Їжа Свіжа"}]
[149,"Добробут-Олександрія, ТОВ","ЦБ10025709","Кіровоградська обл., м. Світловодськ, вул. Героїв України, буд. № 68",{"$f":"VLOOKUP(C151,[1]Sheet1!$F:$G,2,0)","v":"М'ясомаркет"}]
[150,"Добробут-Олександрія, ТОВ","ЦБ10024204","Кіровоградська обл., м. Світловодськ, вул. В.Бойко, буд. № 4",{"$f":"VLOOKUP(C152,[1]Sheet1!$F:$G,2,0)","v":"М'ясомаркет"}]
[151,"Добробут-Олександрія, ТОВ","ЦБ10135984","Кіровоградська обл., м. Світловодськ, вул. М.Грушевського, буд. № 12",{"$f":"VLOOKUP(C153,[1]Sheet1!$F:$G,2,0)","v":"Їжа Свіжа"}]
[152,"Добробут-Олександрія, ТОВ","ЦБ10146454","Кіровоградська обл, м. Олександрія, вул. Садова, буд. № 64",{"$f":"VLOOKUP(C154,[1]Sheet1!$F:$G,2,0)","v":"М'ясомаркет"}]
[153,"Добробут-Олександрія, ТОВ","ЦБ10104959","Кіровоградська обл., м. Олександрія, вул. Діброви, буд. № 74",{"$f":"VLOOKUP(C155,[1]Sheet1!$F:$G,2,0)","v":"Наша Ряба"}]
[154,"Добробут-Олександрія, ТОВ","ЦБ20002577","Кіровоградська обл., м. Олександрія, вул. Миру, буд. № 40",{"$f":"VLOOKUP(C156,[1]Sheet1!$F:$G,2,0)","v":"Їжа Свіжа"}]
[155,"Добробут-Олександрія, ТОВ","ЦБ20087254","Кіровоградська обл., м. Олександрія, просп. Соборний, буд. № 122",{"$f":"VLOOKUP(C157,[1]Sheet1!$F:$G,2,0)","v":"М'ясомаркет"}]
[156,"Добробут-Олександрія, ТОВ","ЦБ30082514","Дніпропетровська обл, м.Жовті Води вул.Гагаріна 20",{"$f":"VLOOKUP(C158,[1]Sheet1!$F:$G,2,0)","v":"М'ясомаркет"}]
[157,"Добробут-Олександрія, ТОВ","ЦБ10107221","Дніпропетровська обл, м.Жовті Води вул.Козацької Слави, 21",{"$f":"VLOOKUP(C159,[1]Sheet1!$F:$G,2,0)","v":"Їжа Свіжа"}]
[158,"Дудник Юрій Олексійович, ФОП","ЦБ10164319","Київська обл, Кагарлицький р-н, с. Стайки, вул. Нова, буд. № 2",{"$f":"VLOOKUP(C160,[1]Sheet1!$F:$G,2,0)","v":"Українське курча"}]
[159,"Дудник Юрій Олексійович, ФОП","ЦБ30093345","Київська обл, Обухівський р-н, м. Українка, просп. Дніпровський, буд. № 12",{"$f":"VLOOKUP(C161,[1]Sheet1!$F:$G,2,0)","v":"Українське курча"}]
[160,"Задорожний І.І., ФОП","ЦБ-0036233","Харківська обл, Лозівський р-н, смт Краснопавлівка, мкрн Мікрорайон","Їжа Свіжа"]
[161,"Закасовський А.А.,ФОП","ЦБ20059410","Дніпропетровська обл, м. Кривий Ріг, вул. Свято-Миколаївська, буд. № 10е",{"$f":"VLOOKUP(C163,[1]Sheet1!$F:$G,2,0)","v":"М'ясомаркет"}]
[162,"Закасовський А.А.,ФОП","ЦБ20047357","Дніпропетровська обл, м. Кривий Ріг, вул. Алмазна, буд. № 21б",{"$f":"VLOOKUP(C164,[1]Sheet1!$F:$G,2,0)","v":"М'ясомаркет"}]
[163,"Закасовський А.А.,ФОП","ЦБ20039126","Дніпропетровська обл, м. Кривий Ріг, вул. 129-ї бригади територіальної оборони, буд. № 127",{"$f":"VLOOKUP(C165,[1]Sheet1!$F:$G,2,0)","v":"М'ясомаркет"}]
[164,"Закасовський А.А.,ФОП","ЦБ20023918","Дніпропетровська обл, м. Кривий Ріг, вул. Літня, буд. № 1/193, /14",{"$f":"VLOOKUP(C166,[1]Sheet1!$F:$G,2,0)","v":"Наша Ряба"}]
[165,"Закасовський А.А.,ФОП","ЦБ20023923","Дніпропетровська обл, м. Кривий Ріг, вул. Літня, буд. № 1/193, /17",{"$f":"VLOOKUP(C167,[1]Sheet1!$F:$G,2,0)","v":"Наша Ряба"}]
[166,"Іванюта Н.А., ФОП","ЦБ-0038490","м. Київ, пл. Печерська, буд. № 1 р-к Печерський, місце№5","Без бренду"]
[167,"Коваленко Ірина Миколаївна, ФОП","ЦБ10100895","Київська обл, Кагарлицький р-н, м. Кагарлик, вул. Паркова, буд. № 7А",{"$f":"VLOOKUP(C169,[1]Sheet1!$F:$G,2,0)","v":"М'ясомаркет"}]
[168,"Коваленко Ірина Миколаївна, ФОП","ЦБ10002670","Київська обл, Кагарлицький р-н, м. Кагарлик, вул. Каштанова, буд. № 1",{"$f":"VLOOKUP(C170,[1]Sheet1!$F:$G,2,0)","v":"М'ясомаркет"}]
[169,"Коваленко Ірина Миколаївна, ФОП","ЦБ10153476","Київська обл, Кагарлицький р-н, м. Кагарлик, вул. Росавська, буд. № 24",{"$f":"VLOOKUP(C171,[1]Sheet1!$F:$G,2,0)","v":"Наша Ряба"}]
[170,"Коваленко Ірина Миколаївна, ФОП","ЦБ20055760","Київська обл, м. Ржищів, вул. Соборна, буд. № 23",{"$f":"VLOOKUP(C172,[1]Sheet1!$F:$G,2,0)","v":"М'ясомаркет + Донер"}]
[171,"Коваленко Ірина Миколаївна, ФОП","ЦБ20051454","Київська обл, м. Ржищів, вул. Шевченка, буд. № 74А",{"$f":"VLOOKUP(C173,[1]Sheet1!$F:$G,2,0)","v":"Українське курча"}]
[172,"Коваленко Ірина Миколаївна, ФОП","ЦБ30047095","Київська обл, Обухівський р-н, м. Кагарлик, вул. Паркова, буд. № 3а","Без бренду"]
[173,"Коваленко Ірина Миколаївна, ФОП","ЦБ10002671","Київська обл, Рокитнянський р-н, м.Рокитне, вул.Ентузіастів, буд. № 6",{"$f":"VLOOKUP(C175,[1]Sheet1!$F:$G,2,0)","v":"Наша Ряба"}]
[174,"Коваль В.О., ФОП","ЦБ20019465","м. Очаків, вул. Олега Мединського, 16-Б","Без бренду"]
[175,"Коваль Ю.С.","ЦБ30089827","с. Новий Биків, вул. Центральна, 8",{"$f":"VLOOKUP(C177,[1]Sheet1!$F:$G,2,0)","v":"Наша Ряба"}]
[176,"Колодієнко С.В., ФОП","ЦБ10097843","м. Миколаїв, вул. Веселинівська, буд. № 13",{"$f":"VLOOKUP(C178,[1]Sheet1!$F:$G,2,0)","v":"Наша Ряба"}]
[177,"Кулешова Г.Ф., ФОП","ЦБ30018674","Одеська обл, Біляївський р-н, с. Нерубайське, вул. Зелена, буд. № 1, корпус А",{"$f":"VLOOKUP(C179,[1]Sheet1!$F:$G,2,0)","v":"М'ясомаркет"}]
[178,"Мазаєва Людмила Григорівна, ФОП","ЦБ-0019289","Київська обл, Ірпінь, смт Коцюбинське, вул. Залізнична, буд. № 2/19","Без бренду"]
[179,"Маргітич А.С.,ФОП","ЦБ10226221","Дніпропетровська обл, Криворізький р-н, смт Радушне, вул. Центральна, буд. № 26",{"$f":"VLOOKUP(C181,[1]Sheet1!$F:$G,2,0)","v":"Наша Ряба"}]
[180,"Мусієнко А.І.,ФОП","ЦБ30065487","м. Очаків, вул. Будівельників, 2/1","Без бренду"]
[181,"М'ЯСНИЙ ЦЕНТР 1, ТОВ","ЦБ20032348","Дніпропетровська обл, м. Вільногірськ, вул. Центральна, буд. № 61б",{"$f":"VLOOKUP(C183,[1]Sheet1!$F:$G,2,0)","v":"Наша Ряба"}]
[182,"М'ЯСНИЙ ЦЕНТР 1, ТОВ","ЦБ20065051","Дніпропетровська обл, м. Кам’янське, вул. Українських Соколів, буд. № 1/з",{"$f":"VLOOKUP(C184,[1]Sheet1!$F:$G,2,0)","v":"Наша Ряба"}]
[183,"М'ЯСНИЙ ЦЕНТР 1, ТОВ","ЦБ20032347","Дніпропетровська обл, м. Кам'янське, просп. Відродження, буд. № 144А",{"$f":"VLOOKUP(C185,[1]Sheet1!$F:$G,2,0)","v":"Наша Ряба"}]
[184,"М'ЯСНИЙ ЦЕНТР 1, ТОВ","ЦБ20032351","Дніпропетровська обл, м. Кам'янське, вул. Дунайська, буд. № 41",{"$f":"VLOOKUP(C186,[1]Sheet1!$F:$G,2,0)","v":"Наша Ряба"}]
[185,"М'ЯСНИЙ ЦЕНТР 1, ТОВ","ЦБ20044408","Дніпропетровська обл, м. Верхньодніпровськ, вул. Дніпровська, буд. № 45/2",{"$f":"VLOOKUP(C187,[1]Sheet1!$F:$G,2,0)","v":"Наша Ряба"}]
[186,"М'ЯСНИЙ ЦЕНТР 1, ТОВ","ЦБ20044414","Дніпропетровська обл, м. Кам’янське, вул. Українських Соколів, буд. № 18Г",{"$f":"VLOOKUP(C188,[1]Sheet1!$F:$G,2,0)","v":"М'ясомаркет"}]
[187,"М'ЯСНИЙ ЦЕНТР 1, ТОВ","ЦБ20040714","Кіровоградська обл., м. Олександрія, просп. Соборний, буд. № 87",{"$f":"VLOOKUP(C189,[1]Sheet1!$F:$G,2,0)","v":"Наша Ряба"}]
[188,"М'ЯСНИЙ ЦЕНТР 1, ТОВ","ЦБ20051740","Дніпропетровська обл, м. Кам’янське, бул. Будівельників, буд. № 41",{"$f":"VLOOKUP(C190,[1]Sheet1!$F:$G,2,0)","v":"М'ясомаркет"}]
[189,"М'ЯСНИЙ ЦЕНТР 1, ТОВ","ЦБ20066867","Дніпропетровська обл, м. Кам’янське, просп. Перемоги, буд. № 57л",{"$f":"VLOOKUP(C191,[1]Sheet1!$F:$G,2,0)","v":"М'ясомаркет"}]
[190,"М'ЯСНИЙ ЦЕНТР 1, ТОВ","ЦБ30105783","м.Дніпро, пров. Вільний 2А","Без бренду"]
[191,"НАФТА СМУ, ПП","ЦБ10234965","Івано-Франківська обл, Городенківський р-н, м. Городенка, вул. Тараса Шевченка, буд. № 85",{"$f":"VLOOKUP(C193,[1]Sheet1!$F:$G,2,0)","v":"Наша Ряба"}]
[192,"НАФТА СМУ, ПП","ЦБ10244182","м. Чернівці, вул. Загули, буд. № 9, корпус новий",{"$f":"VLOOKUP(C194,[1]Sheet1!$F:$G,2,0)","v":"Їжа Свіжа"}]
[193,"НАФТА СМУ, ПП","ЦБ20017138","м. Чернівці, вул. Зарожанська, буд. № 15",{"$f":"VLOOKUP(C195,[1]Sheet1!$F:$G,2,0)","v":"Наша Ряба"}]
[194,"НАФТА СМУ, ПП","ЦБ10025343","59001, Чернівецька обл, Сторожинецький р-н, м. Сторожинець, Тараса Шевченка, буд. № 22",{"$f":"VLOOKUP(C196,[1]Sheet1!$F:$G,2,0)","v":"Їжа Свіжа"}]
[195,"НАФТА СМУ, ПП","ЦБ10062691","58000, м. Чернівці, Ентузіастів, буд. № 2, корпус А",{"$f":"VLOOKUP(C197,[1]Sheet1!$F:$G,2,0)","v":"Наша Ряба"}]
[196,"НАФТА СМУ, ПП","ЦБ10022103","78200, Івано-Франківська обл, м. Коломия, вул. Ринкова, буд. № 48",{"$f":"VLOOKUP(C198,[1]Sheet1!$F:$G,2,0)","v":"Наша Ряба"}]
[197,"НАФТА СМУ, ПП","ЦБ10131998","м. Чернівці, вул. Січових стрільців, буд. № 6в",{"$f":"VLOOKUP(C199,[1]Sheet1!$F:$G,2,0)","v":"М'ясомаркет"}]
[198,"НАФТА СМУ, ПП","ЦБ30083434","м. Чернівці, просп. Незалежності, буд. № 52А",{"$f":"VLOOKUP(C200,[1]Sheet1!$F:$G,2,0)","v":"М'ясомаркет"}]
[199,"НАФТА СМУ, ПП","ЦБ 30090774","Снятин вул.Шевченка 185А",{"$f":"VLOOKUP(C201,[1]Sheet1!$F:$G,2,0)","v":"М'ясомаркет"}]
[200,"НАФТА СМУ, ПП","ЦБ10016666","58001, м. Чернівці, вул. Калинівська, буд. № 13, корпус А",{"$f":"VLOOKUP(C202,[1]Sheet1!$F:$G,2,0)","v":"Наша Ряба"}]
[201,"НАФТА СМУ, ПП","ЦБ10022332","78600, м. Івано-Франківськ, Тролейбусна, буд. № 1",{"$f":"VLOOKUP(C203,[1]Sheet1!$F:$G,2,0)","v":"Наша Ряба"}]
[202,"НАФТА СМУ, ПП","ЦБ30001639","м. Івано-Франківськ, вул. Дністровська, буд. № 5",{"$f":"VLOOKUP(C204,[1]Sheet1!$F:$G,2,0)","v":"Українське курча"}]
[203,"НБК ІЗМАЇЛ СТАР, ТОВ","ЦБ10244262","Одеська обл, м. Ізмаїл, просп. Незалежності, буд. № 54, м-н Гостиница",{"$f":"VLOOKUP(C205,[1]Sheet1!$F:$G,2,0)","v":"М'ясомаркет"}]
[204,"НБК ІЗМАЇЛ СТАР, ТОВ","ЦБ30016218","Одеська обл, Ізмаїльський р-н, м. Кілія, вул. Кіченка, буд. № 31",{"$f":"VLOOKUP(C206,[1]Sheet1!$F:$G,2,0)","v":"М'ясомаркет"}]
[205,"НБК ІЗМАЇЛ СТАР, ТОВ","ЦБ20025996","Одеська обл, м. Ізмаїл, вул. Торгова, буд. № 41, (Мясной ЦУМ)",{"$f":"VLOOKUP(C207,[1]Sheet1!$F:$G,2,0)","v":"М'ясомаркет"}]
[206,"НБК ІЗМАЇЛ СТАР, ТОВ","ЦБ20025995","Одеська обл, м. Ізмаїл, вул. Шевченко, буд. № 48а, (\"Пылинка\")",{"$f":"VLOOKUP(C208,[1]Sheet1!$F:$G,2,0)","v":"М'ясомаркет"}]
[207,"НБК ІЗМАЇЛ СТАР, ТОВ","ЦБ20064981","Одеська обл, Ізмаїльський р-н, м. Рені, вул. Героїв України, буд. № 45, М'ясомаркет",{"$f":"VLOOKUP(C209,[1]Sheet1!$F:$G,2,0)","v":"М'ясомаркет"}]
[208,"НБК ІЗМАЇЛ СТАР, ТОВ","ЦБ30031010","Одеська обл, м. Ізмаїл, вул. Франка Івана, буд. № 14П",{"$f":"VLOOKUP(C210,[1]Sheet1!$F:$G,2,0)","v":"М'ясомаркет"}]
[209,"НБК ІЗМАЇЛ СТАР, ТОВ","ЦБ20064985","Одеська обл, Болградський р-н, м. Болград, вул. Інзовська, буд. № 118 (М'ясомаркет)",{"$f":"VLOOKUP(C211,[1]Sheet1!$F:$G,2,0)","v":"М'ясомаркет"}]
[210,"Пащенко Н.А., ФОП","ЦБ10111475","Одеська обл, Кодимський р-н, м. Кодима, вул. Соборна, буд. № 89",{"$f":"VLOOKUP(C212,[1]Sheet1!$F:$G,2,0)","v":"Їжа Свіжа"}]
[211,"Підгорна Т.М., ФОП","ЦБ20059288","Одеська обл, Роздільнянський р-н, м. Роздільна, вул. Привокзальна, (торговий ряд)",{"$f":"VLOOKUP(C213,[1]Sheet1!$F:$G,2,0)","v":"М'ясомаркет"}]
[212,"ПМК-10, ТОВ","ЦБ20019628","м. Ужгород, вул. Мирного Панаса, буд. № 2Б",{"$f":"VLOOKUP(C214,[1]Sheet1!$F:$G,2,0)","v":"М'ясомаркет"}]
[213,"ПМК-10, ТОВ","ЦБ10097255","88000, м. Ужгород, вул. Корятовича, буд. № 2",{"$f":"VLOOKUP(C215,[1]Sheet1!$F:$G,2,0)","v":"М'ясомаркет"}]
[214,"ПМК-10, ТОВ","ЦБ20039556","м. Ужгород, вул. Капушанська, буд. № 47",{"$f":"VLOOKUP(C216,[1]Sheet1!$F:$G,2,0)","v":"М'ясомаркет"}]
[215,"ПМК-10, ТОВ","ЦБ10175855","м. Ужгород, вул. Павла Чубинського, буд. № 4",{"$f":"VLOOKUP(C217,[1]Sheet1!$F:$G,2,0)","v":"Наша Ряба"}]
[216,"ПМК-10, ТОВ","ЦБ10180598","м. Ужгород, вул. Минайська, буд. № 35А",{"$f":"VLOOKUP(C218,[1]Sheet1!$F:$G,2,0)","v":"Їжа Свіжа"}]
[217,"ПМК-10, ТОВ","ЦБ10131891","м. Ужгород, вул. Заньковецької, буд. № 77/а",{"$f":"VLOOKUP(C219,[1]Sheet1!$F:$G,2,0)","v":"М'ясомаркет"}]
[218,"ПМК-10, ТОВ","ЦБ10014558","88000, м. Ужгород, вул. Карпатської України, буд. № 18, корпус Початок ринку, біля військової частини, вхід з парковки від дороги",{"$f":"VLOOKUP(C220,[1]Sheet1!$F:$G,2,0)","v":"Їжа Свіжа"}]
[219,"ПМК-10, ТОВ","ЦБ10126187","м. Ужгород, пр-т. Свободи, буд. № 52",{"$f":"VLOOKUP(C221,[1]Sheet1!$F:$G,2,0)","v":"М'ясомаркет"}]
[220,"ПМК-10, ТОВ","ЦБ10141483","м. Ужгород, пр-т. Свободи, буд. № 3",{"$f":"VLOOKUP(C222,[1]Sheet1!$F:$G,2,0)","v":"Їжа Свіжа"}]
[221,"ПМК-10, ТОВ","ЦБ20047312","м. Ужгород, вул. Швабська, буд. № 49",{"$f":"VLOOKUP(C223,[1]Sheet1!$F:$G,2,0)","v":"М'ясомаркет"}]
[222,"ПМК-10, ТОВ","ЦБ10204854","м. Ужгород, вул. Закарпатська, буд. № 28",{"$f":"VLOOKUP(C224,[1]Sheet1!$F:$G,2,0)","v":"Їжа Свіжа"}]
[223,"ПМК-10, ТОВ","ЦБ10243881","м. Ужгород, вул. Леонтовича, буд. № 2/1",{"$f":"VLOOKUP(C225,[1]Sheet1!$F:$G,2,0)","v":"Їжа Свіжа"}]
[224,"ПМК-10, ТОВ","ЦБ10175854","м. Ужгород, вул. Грушевського, буд. № 2",{"$f":"VLOOKUP(C226,[1]Sheet1!$F:$G,2,0)","v":"Наша Ряба"}]
[225,"ПМК-10, ТОВ","ЦБ20016556","м. Ужгород, вул. Минайська, буд. № 34",{"$f":"VLOOKUP(C227,[1]Sheet1!$F:$G,2,0)","v":"Їжа Свіжа"}]
[226,"ПМК-10, ТОВ","ЦБ20026362","м. Ужгород, вул. Героїв 128-ї бригади, буд. № 30",{"$f":"VLOOKUP(C228,[1]Sheet1!$F:$G,2,0)","v":"Їжа Свіжа"}]
[227,"ПМК-10, ТОВ","ЦБ20047366","м. Ужгород, вул. Заньковецької Марії, буд. № 10",{"$f":"VLOOKUP(C229,[1]Sheet1!$F:$G,2,0)","v":"Їжа Свіжа"}]
[228,"ПМК-10, ТОВ","ЦБ20089267","м. Ужгород, вул. Другетів, буд. № 126",{"$f":"VLOOKUP(C230,[1]Sheet1!$F:$G,2,0)","v":"Їжа Свіжа"}]
[229,"ПМК-10, ТОВ","ЦБ10091652","88000, м. Ужгород, вул. О.Блистіва, буд. № 25",{"$f":"VLOOKUP(C231,[1]Sheet1!$F:$G,2,0)","v":"Наша Ряба"}]
[230,"ПМК-10, ТОВ","ЦБ10138231","м. Ужгород, вул. О.Блистіва, буд. № 25",{"$f":"VLOOKUP(C232,[1]Sheet1!$F:$G,2,0)","v":"Наша Ряба"}]
[231,"ПМК-10, ТОВ","ЦБ10086475","89000, Закарпатська обл, Великоберезнянський р-н, смт Великий Березний, Тараса Шевченка, буд. № 6",{"$f":"VLOOKUP(C233,[1]Sheet1!$F:$G,2,0)","v":"Їжа Свіжа"}]
[232,"ПМК-10, ТОВ","ЦБ10036823","89200, Закарпатська обл, Перечинський р-н, м. Перечин, Народна, буд. № 19",{"$f":"VLOOKUP(C234,[1]Sheet1!$F:$G,2,0)","v":"Наша Ряба"}]
[233,"ПМК-10, ТОВ","ЦБ10040126","89200, Закарпатська обл, Перечинський р-н, м. Перечин, вул. Ужанська, буд. № 22, корпус справого боку від входу на ринок",{"$f":"VLOOKUP(C235,[1]Sheet1!$F:$G,2,0)","v":"Їжа Свіжа"}]
[234,"ПМК-10, ТОВ","ЦБ10086458","89230, Закарпатська обл, Перечинський р-н, с. Порошково, вул. Центральна, буд. № 67",{"$f":"VLOOKUP(C236,[1]Sheet1!$F:$G,2,0)","v":"Наша Ряба"}]
[235,"ПМК-10, ТОВ","ЦБ10181040","Закарпатська обл, Перечинський р-н, с. Тур'ї Ремети, вул. Радванка, буд. № 89",{"$f":"VLOOKUP(C237,[1]Sheet1!$F:$G,2,0)","v":"Наша Ряба"}]
[236,"ПМК-10, ТОВ","ЦБ10049304","89500, Закарпатська обл, м. Чоп, Туряниці, буд. № 12",{"$f":"VLOOKUP(C238,[1]Sheet1!$F:$G,2,0)","v":"М'ясомаркет"}]
[237,"ПМК-10, ТОВ","ЦБ20069367","Закарпатська обл, м. Чоп, вул. Берег, буд. № 17",{"$f":"VLOOKUP(C239,[1]Sheet1!$F:$G,2,0)","v":"Їжа Свіжа"}]
[238,"ПМК-10, ТОВ","ЦБ10040183","88000, Закарпатська обл, Ужгородський р-н, с. Велика Добронь, буд. № 128",{"$f":"VLOOKUP(C240,[1]Sheet1!$F:$G,2,0)","v":"Наша Ряба"}]
[239,"ПМК-10, ТОВ","ЦБ10137763","Закарпатська обл, Мукачівський р-н, с. Великі Лучки, вул. Галаська, буд. № 9",{"$f":"VLOOKUP(C241,[1]Sheet1!$F:$G,2,0)","v":"Їжа Свіжа"}]
[240,"ПМК-10, ТОВ","ЦБ10108908","Закарпатська обл, Ужгородський р-н, смт Середнє, вул. Закарпатська, буд. № 62",{"$f":"VLOOKUP(C242,[1]Sheet1!$F:$G,2,0)","v":"М'ясомаркет"}]
[241,"ПМК-10, ТОВ","ЦБ10182855","Закарпатська обл, м. Мукачево, вул. Масарика Томаша, буд. № 15",{"$f":"VLOOKUP(C243,[1]Sheet1!$F:$G,2,0)","v":"Наша Ряба"}]
[242,"ПМК-10, ТОВ","ЦБ10228036","Закарпатська обл, м. Мукачеве, вул. Митрополита Володимира, буд. № 50",{"$f":"VLOOKUP(C244,[1]Sheet1!$F:$G,2,0)","v":"Їжа Свіжа"}]
[243,"ПМК-10, ТОВ","ЦБ20051215","Закарпатська обл, м. Мукачево, вул. Духновича Олександра, буд. № 3",{"$f":"VLOOKUP(C245,[1]Sheet1!$F:$G,2,0)","v":"М'ясомаркет"}]
[244,"ПМК-10, ТОВ","ЦБ20005857","Закарпатська обл, Мукачівський р-н, смт Чинадійово, вул. Волошина, буд. № 76",{"$f":"VLOOKUP(C246,[1]Sheet1!$F:$G,2,0)","v":"М'ясомаркет"}]
[245,"ПМК-10, ТОВ","ЦБ10015122","89300, Закарпатська обл, Свалявський р-н, м. Свалява, Київська, буд. № 10, р-к Продовольчий ринок",{"$f":"VLOOKUP(C247,[1]Sheet1!$F:$G,2,0)","v":"Наша Ряба"}]
[246,"ПМК-10, ТОВ","ЦБ10095676","89300, Закарпатська обл, Свалявський р-н, м. Свалява, вул. Головна, буд. № 54",{"$f":"VLOOKUP(C248,[1]Sheet1!$F:$G,2,0)","v":"Їжа Свіжа"}]
[247,"ПМК-10, ТОВ","ЦБ20026634","Закарпатська обл, Свалявський р-н, м. Свалява, вул. Жатковича, буд. № 5",{"$f":"VLOOKUP(C249,[1]Sheet1!$F:$G,2,0)","v":"М'ясомаркет"}]
[248,"ПМК-10, ТОВ","ЦБ10118749","Закарпатська обл, Свалявський р-н, с. Поляна, вул. Духновича, буд. № 65",{"$f":"VLOOKUP(C250,[1]Sheet1!$F:$G,2,0)","v":"Наша Ряба"}]
[249,"ПМК-10, ТОВ","ЦБ10237652","Закарпатська обл, Свалявський р-н, с. Керецьки, вул. Головна, буд. № 47",{"$f":"VLOOKUP(C251,[1]Sheet1!$F:$G,2,0)","v":"Наша Ряба"}]
[250,"ПМК-10, ТОВ","ЦБ10036573","Закарпатська обл, Іршавський р-н, с. Кушниця, Перемоги, буд. № 6",{"$f":"VLOOKUP(C252,[1]Sheet1!$F:$G,2,0)","v":"Наша Ряба"}]
[251,"ПМК-10, ТОВ","ЦБ20009167","Закарпатська обл, Іршавський р-н, с. Приборжавське, вул. Центральна, буд. № 90",{"$f":"VLOOKUP(C253,[1]Sheet1!$F:$G,2,0)","v":"Наша Ряба"}]
[252,"ПМК-10, ТОВ","ЦБ10120226","Закарпатська обл, Іршавський р-н, с. Довге, вул. Велика, буд. № 5",{"$f":"VLOOKUP(C254,[1]Sheet1!$F:$G,2,0)","v":"Наша Ряба"}]
[253,"ПМК-10, ТОВ","ЦБ10090443","90330, Закарпатська обл, Іршавський р-н, с. Білки, Центральна, буд. № 8, корпус А",{"$f":"VLOOKUP(C255,[1]Sheet1!$F:$G,2,0)","v":"Наша Ряба"}]
[254,"ПМК-10, ТОВ","ЦБ30101072","Закарпатська обл, Хустський р-н, с. Великий Раковець, вул. Мазепи, буд. № 1","Без бренду"]
[255,"ПМК-10, ТОВ","ЦБ10128520","Закарпатська обл, Іршавський р-н, с. Ільниця, вул. 128-ї бригади, буд. № 1а/1",{"$f":"VLOOKUP(C257,[1]Sheet1!$F:$G,2,0)","v":"М'ясомаркет"}]
[256,"ПМК-10, ТОВ","ЦБ10040161","90100, Закарпатська обл, Іршавський р-н, м. Іршава, Тараса Шевченка, буд. № 21",{"$f":"VLOOKUP(C258,[1]Sheet1!$F:$G,2,0)","v":"М'ясомаркет"}]
[257,"ПМК-10, ТОВ","ЦБ10179452","Закарпатська обл, Іршавський р-н, м. Іршава, вул. Незалежності, буд. № 42",{"$f":"VLOOKUP(C259,[1]Sheet1!$F:$G,2,0)","v":"Наша Ряба"}]
[258,"ПМК-10, ТОВ","ЦБ10224633","Закарпатська обл, Іршавський р-н, м. Іршава, вул. Народна, буд. № 7",{"$f":"VLOOKUP(C260,[1]Sheet1!$F:$G,2,0)","v":"Наша Ряба"}]
[259,"ПМК-10, ТОВ","ЦБ10180758","Закарпатська обл, Іршавський р-н, с. Сільце, вул. Центральна, буд. № 51А",{"$f":"VLOOKUP(C261,[1]Sheet1!$F:$G,2,0)","v":"Наша Ряба"}]
[260,"ПМК-10, ТОВ","ЦБ10025145","90400, Закарпатська обл, м. Хуст, вул. Карпатської Січі, буд. № 25, корпус Знаходиться в центрі міста , навпроти Центрального Універмага",{"$f":"VLOOKUP(C262,[1]Sheet1!$F:$G,2,0)","v":"М'ясомаркет"}]
[261,"ПМК-10, ТОВ","ЦБ20042894","Закарпатська обл, м. Хуст, вул. Карпатської Січі, буд. № 17",{"$f":"VLOOKUP(C263,[1]Sheet1!$F:$G,2,0)","v":"Їжа Свіжа"}]
[262,"ПМК-10, ТОВ","ЦБ10137757","Закарпатська обл, Хустський р-н, с. Іза, вул. Центральна, буд. № 101",{"$f":"VLOOKUP(C264,[1]Sheet1!$F:$G,2,0)","v":"Наша Ряба"}]
[263,"ПМК-10, ТОВ","ЦБ10141770","Закарпатська обл, Хустський р-н, с. Сокирниця, вул. Центральна",{"$f":"VLOOKUP(C265,[1]Sheet1!$F:$G,2,0)","v":"Наша Ряба"}]
[264,"ПМК-10, ТОВ","ЦБ10153126","Закарпатська обл, Хустський р-н, с. Велятин, вул. Миру, буд. № 71",{"$f":"VLOOKUP(C266,[1]Sheet1!$F:$G,2,0)","v":"Їжа Свіжа"}]
[265,"ПМК-10, ТОВ","ЦБ10040083","90400, Закарпатська обл, Хустський р-н, смт Вишково, Центральна, буд. № 33",{"$f":"VLOOKUP(C267,[1]Sheet1!$F:$G,2,0)","v":"Наша Ряба"}]
[266,"ПМК-10, ТОВ","ЦБ10145998","Закарпатська обл, Міжгірський р-н, смт Міжгір’я, вул. Шевченка Тараса, буд. № 140",{"$f":"VLOOKUP(C268,[1]Sheet1!$F:$G,2,0)","v":"Наша Ряба"}]
[267,"ПМК-10, ТОВ","ЦБ10166446","Закарпатська обл, Воловецький р-н, смт Воловець, вул. Коротка, буд. № 1/А",{"$f":"VLOOKUP(C269,[1]Sheet1!$F:$G,2,0)","v":"Наша Ряба"}]
[268,"ПМК-10, ТОВ","ЦБ30026276","селище Воловець, вул. Карпатська, буд. № 42","Без бренду"]
[269,"ПМК-10, ТОВ","ЦБ10015649","90200, Закарпатська обл, м. Берегове, вул. Сечені, буд. № 10, корпус При вході на продовольчий ринок з вул.Сечені, від міліції",{"$f":"VLOOKUP(C271,[1]Sheet1!$F:$G,2,0)","v":"Наша Ряба"}]
[270,"ПМК-10, ТОВ","ЦБ10131152","Закарпатська обл, м. Берегове, вул. Мужайська, буд. № 119",{"$f":"VLOOKUP(C272,[1]Sheet1!$F:$G,2,0)","v":"Наша Ряба"}]
[271,"ПМК-10, ТОВ","ЦБ30092023","Закарпатська обл, м. Берегове, вул. Хмельницького Богдана, буд. № 106В",{"$f":"VLOOKUP(C273,[1]Sheet1!$F:$G,2,0)","v":"Їжа свіжа"}]
[272,"ПМК-10, ТОВ","ЦБ20026633","Закарпатська обл, м. Берегове, вул. Сечені, буд. № 34",{"$f":"VLOOKUP(C274,[1]Sheet1!$F:$G,2,0)","v":"Їжа свіжа"}]
[273,"ПМК-10, ТОВ","ЦБ30070353","Закарпатська обл, м. Берегове, вул. Сечені, буд. № 10",{"$f":"VLOOKUP(C275,[1]Sheet1!$F:$G,2,0)","v":"М'ясомаркет"}]
[274,"ПМК-10, ТОВ","ЦБ30082641","Закарпатська обл, Берегівський р-н, с. Яноші, вул. Шевченка, буд. № 1В",{"$f":"VLOOKUP(C276,[1]Sheet1!$F:$G,2,0)","v":"Їжа свіжа"}]
[275,"ПМК-10, ТОВ","ЦБ10025476","90300, Закарпатська обл, Виноградівський р-н, м. Виноградів, вул. Тараса Шевченка, буд. № 9, корпус Центральний ринок, перед входом на ринок, кутова",{"$f":"VLOOKUP(C277,[1]Sheet1!$F:$G,2,0)","v":"М'ясомаркет"}]
[276,"ПМК-10, ТОВ","ЦБ10029287","90300, Закарпатська обл, Виноградівський р-н, м. Виноградів, вул. Тараса Шевченка, буд. № 9, корпус Центральний ринок, ФТТ зліва перед виходом з ринка на вул. Українську (до стадіона)",{"$f":"VLOOKUP(C278,[1]Sheet1!$F:$G,2,0)","v":"Наша Ряба"}]
[277,"ПМК-10, ТОВ","ЦБ10012099","90300, Закарпатська обл, Виноградівський р-н, м. Виноградів, вул. Комунальна, буд. № 17, корпус Оптовий ринок, з правого боку від входу в ринок",{"$f":"VLOOKUP(C279,[1]Sheet1!$F:$G,2,0)","v":"Наша Ряба"}]
[278,"ПМК-10, ТОВ","ЦБ10146660","Закарпатська обл, Виноградівський р-н, м. Виноградів, вул. Комунальна, буд. № 17",{"$f":"VLOOKUP(C280,[1]Sheet1!$F:$G,2,0)","v":"Наша Ряба"}]
[279,"ПМК-10, ТОВ","ЦБ30036150","Закарпатська обл, Берегівський р-н, м. Виноградів, вул. Комунальна, буд. № 17В/6",{"$f":"VLOOKUP(C281,[1]Sheet1!$F:$G,2,0)","v":"М'ясомаркет"}]
[280,"ПМК-10, ТОВ","ЦБ20051218","Закарпатська обл, Берегівський р-н, м. Виноградів, вул. Корятовича, буд. № 10, (біля школи)",{"$f":"VLOOKUP(C282,[1]Sheet1!$F:$G,2,0)","v":"М'ясомаркет"}]
[281,"ПМК-10, ТОВ","ЦБ10118747","Закарпатська обл, Виноградівський р-н, смт Королево, вул. Злагоди, буд. № 19",{"$f":"VLOOKUP(C283,[1]Sheet1!$F:$G,2,0)","v":"Наша Ряба"}]
[282,"ПМК-10, ТОВ","ЦБ10125336","Закарпатська обл, Виноградівський р-н, с. Підвиноградів, вул. Ардовецька, буд. № 106",{"$f":"VLOOKUP(C284,[1]Sheet1!$F:$G,2,0)","v":"Наша Ряба"}]
[283,"ПМК-10, ТОВ","ЦБ30006972","Закарпатська обл, Берегівський р-н, селище Вилок, вул. Томаша, буд. № 1",{"$f":"VLOOKUP(C285,[1]Sheet1!$F:$G,2,0)","v":"Їжа свіжа"}]
[284,"ПМК-10, ТОВ","ЦБ10104132","90132, Закарпатська обл, Виноградівський р-н, с. Великі Ком’яти, вул. Волошина, буд. № 32, корпус А",{"$f":"VLOOKUP(C286,[1]Sheet1!$F:$G,2,0)","v":"Наша Ряба"}]
[285,"ПМК-10, ТОВ","ЦБ10173633","Закарпатська обл, Берегівський р-н, с. Чорнотисів, вул. Головна, буд. № 68",{"$f":"VLOOKUP(C287,[1]Sheet1!$F:$G,2,0)","v":"Наша Ряба"}]
[286,"ПМК-10, ТОВ","ЦБ10180599","Закарпатська обл, Виноградівський р-н, с. Неветленфолу, вул. Фогодо, буд. № 32",{"$f":"VLOOKUP(C288,[1]Sheet1!$F:$G,2,0)","v":"Їжа Свіжа"}]
[287,"ПМК-10, ТОВ","ЦБ20027673","Закарпатська обл, Виноградівський р-н, с. Онок, вул. Миру, буд. № 32",{"$f":"VLOOKUP(C289,[1]Sheet1!$F:$G,2,0)","v":"Їжа Свіжа"}]
[288,"ПМК-10, ТОВ","ЦБ10023986","90556, Закарпатська обл, Тячівський р-н, смт Буштино, Головна, буд. № 106",{"$f":"VLOOKUP(C290,[1]Sheet1!$F:$G,2,0)","v":"Їжа Свіжа"}]
[289,"ПМК-10, ТОВ","ЦБ30070352","Закарпатська обл, Тячівський р-н, с. Бедевля, вул. Вайнагія Івана, буд. № 27А",{"$f":"VLOOKUP(C291,[1]Sheet1!$F:$G,2,0)","v":"Їжа свіжа"}]
[290,"ПМК-10, ТОВ","ЦБ10087588","90564, Закарпатська обл, Тячівський р-н, селище Тересва, вул. Народна, буд. № 75",{"$f":"VLOOKUP(C292,[1]Sheet1!$F:$G,2,0)","v":"Їжа Свіжа"}]
[291,"ПМК-10, ТОВ","ЦБ20086788","Закарпатська обл, Тячівський р-н, смт Тересва, вул. Народна, буд. № 85",{"$f":"VLOOKUP(C293,[1]Sheet1!$F:$G,2,0)","v":"М'ясомаркет"}]
[292,"ПМК-10, ТОВ","ЦБ20027696","Закарпатська обл, Рахівський р-н, с. Верхнє Водяне, вул. Центральна, буд. № 4а",{"$f":"VLOOKUP(C294,[1]Sheet1!$F:$G,2,0)","v":"Їжа Свіжа"}]
[293,"ПМК-10, ТОВ","ЦБ20059568","Закарпатська обл, Тячівський р-н, с. Угля, пл. Возз'єднання, буд. № 11",{"$f":"VLOOKUP(C295,[1]Sheet1!$F:$G,2,0)","v":"Їжа Свіжа"}]
[294,"ПМК-10, ТОВ","ЦБ10204369","Закарпатська обл, Тячівський р-н, с. Терново, вул. Центральна, буд. № 75А",{"$f":"VLOOKUP(C296,[1]Sheet1!$F:$G,2,0)","v":"М'ясомаркет"}]
[295,"ПМК-10, ТОВ","ЦБ10130593","Закарпатська обл, Тячівський р-н, смт Дубове, вул. Гагаріна, буд. № 32/а",{"$f":"VLOOKUP(C297,[1]Sheet1!$F:$G,2,0)","v":"Наша Ряба"}]
[296,"ПМК-10, ТОВ","ЦБ10134200","Закарпатська обл, Тячівський р-н, с. Нересниця, вул. Грушевського, буд. № 11а",{"$f":"VLOOKUP(C298,[1]Sheet1!$F:$G,2,0)","v":"М'ясомаркет"}]
[297,"ПМК-10, ТОВ","ЦБ10180597","Закарпатська обл, Тячівський р-н, м. Тячів, Армійська, буд. № 14",{"$f":"VLOOKUP(C299,[1]Sheet1!$F:$G,2,0)","v":"Їжа Свіжа"}]
[298,"ПМК-10, ТОВ","ЦБ30064939","Закарпатська обл, Тячівський р-н, м. Тячів, вул. Куцина Олега, буд. № 30/1",{"$f":"VLOOKUP(C300,[1]Sheet1!$F:$G,2,0)","v":"Їжа свіжа"}]
[299,"ПМК-10, ТОВ","ЦБ10128282","Закарпатська обл, Тячівський р-н, с. Грушово, вул. Головна, буд. № 89/А",{"$f":"VLOOKUP(C301,[1]Sheet1!$F:$G,2,0)","v":"Їжа Свіжа"}]
[300,"ПМК-10, ТОВ","ЦБ10086460","90575, Закарпатська обл, Тячівський р-н, смт Солотвино, буд. № 22, корпус вул. Сігетська. дорога до кордону",{"$f":"VLOOKUP(C302,[1]Sheet1!$F:$G,2,0)","v":"Їжа Свіжа"}]
[301,"ПМК-10, ТОВ","ЦБ10097258","90615, Закарпатська обл, Рахівський р-н, смт Великий Бичків, вул. Михайла Грушевського, буд. № 110",{"$f":"VLOOKUP(C303,[1]Sheet1!$F:$G,2,0)","v":"Їжа Свіжа"}]
[302,"ПМК-10, ТОВ","ЦБ20039558","Закарпатська обл, Рахівський р-н, смт Великий Бичків, вул. Карпатських січовиків, буд. № 2А",{"$f":"VLOOKUP(C304,[1]Sheet1!$F:$G,2,0)","v":"М'ясомаркет"}]
[303,"ПМК-10, ТОВ","ЦБ10160745","Закарпатська обл, Рахівський р-н, с. Ділове, вул. Трибушанська, буд. № 39",{"$f":"VLOOKUP(C305,[1]Sheet1!$F:$G,2,0)","v":"Наша Ряба"}]
[304,"ПМК-10, ТОВ","ЦБ10209495","Закарпатська обл, Рахівський р-н, м. Рахів, вул. Миру, буд. № 25/3",{"$f":"VLOOKUP(C306,[1]Sheet1!$F:$G,2,0)","v":"М'ясомаркет"}]
[305,"ПМК-10, ТОВ","ЦБ10130215","Закарпатська обл, Рахівський р-н, м. Рахів, вул. Тараса Шевченка, буд. № 2",{"$f":"VLOOKUP(C307,[1]Sheet1!$F:$G,2,0)","v":"Наша Ряба"}]
[306,"ПМК-10, ТОВ","ЦБ10134947","Закарпатська обл, Рахівський р-н, селище Ясіня, вул. Миру, буд. № 10",{"$f":"VLOOKUP(C308,[1]Sheet1!$F:$G,2,0)","v":"Їжа Свіжа"}]
[307,"ПМК-10, ТОВ","ЦБ30017370","Закарпатська обл, Рахівський р-н, смт Ясіня, вул. Миру, буд. № 105В",{"$f":"VLOOKUP(C309,[1]Sheet1!$F:$G,2,0)","v":"Їжа Свіжа"}]
[308,"ПМК-10, ТОВ","ЦБ10241863","Закарпатська обл, м. Хуст, вул. Карпатської Січі, буд. № 40",{"$f":"VLOOKUP(C310,[1]Sheet1!$F:$G,2,0)","v":"Українське курча"}]
[309,"ПМК-10, ТОВ","ЦБ20059673","Закарпатська обл, Берегівський р-н, м. Виноградів, вул. Комунальна, буд. № 17 ВЗ",{"$f":"VLOOKUP(C311,[1]Sheet1!$F:$G,2,0)","v":"Українське курча"}]
[310,"ПМК-10, ТОВ","ЦБ10226439","Закарпатська обл, Рахівський р-н, смт Великий Бичків, вул. Грушевського, буд. № 111",{"$f":"VLOOKUP(C312,[1]Sheet1!$F:$G,2,0)","v":"Українське курча"}]
[311,"ПМК-10, ТОВ","ЦБ20059567","Закарпатська обл, Ужгородський р-н, смт Великий Березний, вул. Шевченка Тараса, буд. № 6",{"$f":"VLOOKUP(C313,[1]Sheet1!$F:$G,2,0)","v":"Українське курча"}]
[312,"Подільський Фермер, ТОВ","ЦБ20001190","Рівненська обл, Здолбунівський р-н, м. Здолбунів, вул. Шкільна, буд. № 27","Їжа Свіжа"]
[313,"Подільський Фермер, ТОВ","ЦБ20009479","Рівненська обл, Костопільський р-н, м. Костопіль, вул. Героїв України, буд. № 11","Наша Ряба"]
[314,"Подільський Фермер, ТОВ","ЦБ20030296","Тернопільська обл, Кременецький р-н, м. Кременець, вул. Шевченка, буд. № 27/19","Наша Ряба"]
[315,"Подільський Фермер, ТОВ","ЦБ20030311","Тернопільська обл, Кременецький р-н, м. Почаїв, вул. Кременецька, буд. № 1в","Наша Ряба"]
[316,"Подільський Фермер, ТОВ","ЦБ20030313","Тернопільська обл, Зборівський р-н, м. Зборів, вул. Б.Хмельницького, буд. № 2б","Їжа Свіжа"]
[317,"Подільський Фермер, ТОВ","ЦБ20030318","м. Тернопіль, вул. Шептицького, буд. № 5а/82","Наша Ряба"]
[318,"Подільський Фермер, ТОВ","ЦБ20030322","Тернопільська обл, Монастириський р-н, м. Монастириська, вул. Січових стрільців","Наша Ряба"]
[319,"Подільський Фермер, ТОВ","ЦБ20030354","м. Тернопіль, вул. Слівенська, буд. № 15","Їжа Свіжа"]
[320,"Подільський Фермер, ТОВ","ЦБ20031553","Хмельницька обл, Шепетівський р-н, селище Білогір’я, вул. Галицького, буд. № 2","Наша Ряба"]
[321,"Подільський Фермер, ТОВ","ЦБ20031555","Хмельницька обл, Хмельницький р-н, м. Волочиськ, вул. Незалежності, буд. № 50","Наша Ряба"]
[322,"Подільський Фермер, ТОВ","ЦБ20031557","м. Чортків, вул. Шевченка Тараса, буд. № 29_9","Їжа Свіжа"]
[323,"Подільський Фермер, ТОВ","ЦБ20031559","Тернопільська обл., смт Підгайці, вул. Галицька 1А","Наша Ряба"]
[324,"Подільський Фермер, ТОВ","ЦБ20031560","Тернопільська обл., смт Козова, вул. Грушевського 12а/ 4","Наша Ряба"]
[325,"Подільський Фермер, ТОВ","ЦБ20032471","м. Бережани, вул. Бандери Степана, буд. № 18А/2","Без бренду"]
[326,"Подільський Фермер, ТОВ","ЦБ20037342","Тернопільська обл, Бучацький р-н, м. Бучач, вул. Галицька, буд. № 11А","Їжа Свіжа"]
[327,"Подільський Фермер, ТОВ","ЦБ20045298","Житомирська обл, м. Звягель, вул. Шевченка, буд. № 6А","Без бренду"]
[328,"Подільський Фермер, ТОВ","ЦБ20045301","Хмельницька обл, Шепетівський р-н, м. Полонне, вул. Бандери Степана, буд. № 12","М'ясомаркет"]
[329,"Подільський Фермер, ТОВ","ЦБ20045303","Хмельницька обл, Шепетівський р-н, м. Ізяслав, вул. Шевченка, буд. № 14б","Без бренду"]
[330,"Подільський Фермер, ТОВ","ЦБ20045305","Хмельницька обл, м. Шепетівка, просп. Миру, буд. № 24А","М'ясомаркет"]
[331,"Подільський Фермер, ТОВ","ЦБ20045306","Хмельницька обл, м. Славута, вул. Соборності, буд. № 15А","М'ясомаркет"]
[332,"Подільський Фермер, ТОВ","ЦБ20045307","Хмельницька обл, м. Славута, вул. Сокола, буд. № 3","Їжа Свіжа"]
[333,"Подільський Фермер, ТОВ","ЦБ20045311","Житомирська обл, Житомирський р-н, селище Чуднів, вул. Героїв Майдану, буд. № 142","Без бренду"]
[334,"Подільський Фермер, ТОВ","ЦБ20045313","Рівненська обл, м. Острог, просп. Незалежності, буд. № 4а","Їжа Свіжа"]
[335,"Подільський Фермер, ТОВ","ЦБ20045314","Хмельницька обл, м. Старокостянтинів, вул. Острозького, буд. № 17/4","Без бренду"]
[336,"Подільський Фермер, ТОВ","ЦБ20045316","Хмельницька обл, м. Старокостянтинів, вул. Грушевського, буд. № 18","М'ясомаркет"]
[337,"Подільський Фермер, ТОВ","ЦБ20045321","м. Рівне, вул. Богоявленська, буд. № 41","М'ясомаркет"]
[338,"Подільський Фермер, ТОВ","ЦБ20045332","м. Житомир, вул. Вітрука, буд. № 12в","Наша Ряба"]
[339,"Подільський Фермер, ТОВ","ЦБ20047270","м. Житомир, вул. Покровська, буд. № 18","Наша Ряба"]
[340,"Подільський Фермер, ТОВ","ЦБ20051366","Тернопільська обл, Чортківський р-н, м. Заліщики, вул. Бандери Степана, буд. № 36а","М'ясомаркет"]
[341,"Подільський Фермер, ТОВ","ЦБ20052581","м. Рівне, вул. Грушевського, буд. № 2а","Їжа Свіжа"]
[342,"Подільський Фермер, ТОВ","ЦБ20056058","м. Тернопіль, вул. Руська, буд. № 14","М'ясомаркет"]
[343,"Подільський Фермер, ТОВ","ЦБ20056214","Хмельницька обл, Хмельницький р-н, м. Волочиськ, вул. Незалежності, буд. № 29а","М'ясомаркет"]
[344,"Подільський Фермер, ТОВ","ЦБ20061459","Тернопільська обл, Тернопільський р-н, смт Підволочиськ, вул. Галицького Данила, буд. № 31","М'ясомаркет"]
[345,"Подільський Фермер, ТОВ","ЦБ20062644","Тернопільська обл, Тернопільський р-н, м. Збараж, майд. Франка, буд. № 16","Їжа Свіжа"]
[346,"Подільський Фермер, ТОВ","ЦБ20064939","Житомирська обл, Житомирський р-н, смт Пулини, вул. Шевченка, буд. № 97","Без бренду"]
[347,"Подільський Фермер, ТОВ","ЦБ20074150","Тернопільська обл, Чортківський р-н, м. Борщів, вул. Шевченка, буд. № 21А","М'ясомаркет"]
[348,"Подільський Фермер, ТОВ","ЦБ20076914","Тернопільська обл, Тернопільський р-н, м. Бережани, вул. Руська, буд. № 9, офіс/кімн. Подільський Фермер ТОВ, м. м. Бережани, вул. Руська 9","Їжа Свіжа"]
[349,"Подільський Фермер, ТОВ","ЦБ20076915","м. Тернопіль, бул. Петлюри, буд. № 2","Їжа Свіжа"]
[350,"Подільський Фермер, ТОВ","ЦБ20078677","Рівненська обл, Сарненський р-н, м. Сарни, вул. Степана Бандери, буд. № 8А","М'ясомаркет"]
[351,"Подільський Фермер, ТОВ","ЦБ20078703","Івано-Франківська обл, Івано-Франківський р-н, м. Бурштин, вул. Калуська, буд. № 18А","Їжа Свіжа"]
[352,"Подільський Фермер, ТОВ","ЦБ20080805","Хмельницька обл, Хмельницький р-н, м. Красилів, вул. Грушевського, буд. № 87","М'ясомаркет"]
[353,"Подільський Фермер, ТОВ","ЦБ20080860","Рівненська обл, Дубенський р-н, селище Млинів, вул. Рівненська, буд. № 2А","М'ясомаркет"]
[354,"Подільський Фермер, ТОВ","ЦБ20080862","Рівненська обл, Рівненський р-н, м. Корець, вул. Хмельницького Богдана, буд. № 3","М'ясомаркет"]
[355,"Подільський Фермер, ТОВ","ЦБ20081120","Хмельницька обл, м. Старокостянтинів, вул. Грушевського, буд. № 43/1","Їжа Свіжа"]
[356,"Подільський Фермер, ТОВ","ЦБ20084516","м. Тернопіль, вул. Котляревського, буд. № 12А","Їжа Свіжа"]
[357,"Подільський Фермер, ТОВ","ЦБ20085291","Івано-Франківська обл, Івано-Франківський р-н, м. Рогатин, вул. Галицька, буд. № 68","Їжа Свіжа"]
[358,"Подільський Фермер, ТОВ","ЦБ20090043","Житомирська обл, Житомирський р-н, селище Черняхів, вул. Івана Франка, буд. № 1","М'ясомаркет"]
[359,"Подільський Фермер, ТОВ","ЦБ20090325","Тернопільська обл, Чортківський р-н, селище Гусятин, просп. Незалежності, буд. № 1Б","Їжа Свіжа"]
[360,"Подільський Фермер, ТОВ","ЦБ20090724","Тернопільська обл, Чортківський р-н, смт Гримайлів, вул. Хмельницького Богдана","Їжа Свіжа"]
[361,"Подільський Фермер, ТОВ","ЦБ30000280","м. Рівне, вул. Чорновола В’ячеслава, буд. № 12","Їжа Свіжа"]
[362,"Подільський Фермер, ТОВ","ЦБ30005605","Житомирська обл, Житомирський р-н, селище Любар, вул. Лесі Українки, буд. № 1А","Їжа Свіжа"]
[363,"Подільський Фермер, ТОВ","ЦБ30016374","Івано-Франківська обл, м. Коломия, вул. Січових Стрільців, буд. № 1А","М'ясомаркет"]
[364,"Подільський Фермер, ТОВ","ЦБ30016594","м. Рівне, вул. Буковинська, буд. № 3","М'ясомаркет"]
[365,"Подільський Фермер, ТОВ","ЦБ30016595","Рівненська обл, Рівненський р-н, селище Клевань, вул. Залізнична, буд. № 4Г","Їжа Свіжа"]
[366,"Подільський Фермер, ТОВ","ЦБ30017020","Івано-Франківська обл, Коломийський р-н, м. Городенка, вул. Шевченка, буд. № 51","Без бренду"]
[367,"Подільський Фермер, ТОВ","ЦБ30020054","м. Хмельницький, вул. Шевченка, буд. № 89","М'ясомаркет"]
[368,"Подільський Фермер, ТОВ","ЦБ30022853","Рівненська обл, Рівненський р-н, м. Березне, вул. Андріївська, буд. № 48","Їжа Свіжа"]
[369,"Подільський Фермер, ТОВ","ЦБ30039154","м. Рівне, вул. Бандери Степана, буд. № 1Е","М'ясомаркет"]
[370,"Подільський Фермер, ТОВ","ЦБ30051719","м. Житомир, вул. Хлібна, буд. № 16","М'ясомаркет"]
[371,"Подільський Фермер, ТОВ","ЦБ30051721","м. Хмельницький, вул. Подільська, буд. № 58","Без бренду"]
[372,"Подільський Фермер, ТОВ","ЦБ30063937","Хмельницька обл, м. Старокостянтинів, вул. Франка Івана, буд. № 29/1","Їжа Свіжа"]
[373,"Подільський Фермер, ТОВ","ЦБ30064666","Житомирська обл, Житомирський р-н, селище Романів, вул. Небесної Сотні, буд. № 85","М'ясомаркет"]
[374,"Подільський Фермер, ТОВ","ЦБ30065597","Івано-Франківська обл, Івано-Франківський р-н, м. Тлумач, вул. Кармелюка, буд. № 16","М'ясомаркет"]
[375,"Подільський Фермер, ТОВ","ЦБ30065603","Івано-Франківська обл, м. Коломия, вул. Мазепи Гетьмана, буд. № 37А","М'ясомаркет"]
[376,"Подільський Фермер, ТОВ","ЦБ30069258","м. Хмельницький, вул. Шевченка, буд. № 39","М'ясомаркет"]
[377,"Подільський Фермер, ТОВ","ЦБ30070349","м. Івано-Франківськ, вул. Європейська, буд. № 1","Без бренду"]
[378,"Подільський Фермер, ТОВ","ЦБ30074457","Житомирська обл, Бердичівський р-н, м. Андрушівка, вул. Зазулінського","Без бренду"]
[379,"Подільський Фермер, ТОВ","ЦБ30098164","м. Івано-Франківськ, вул. Галицька, буд. № 34Б","Їжа Свіжа"]
[380,"Протасов С.Л., ФОП","ЦБ10159978","м. Миколаїв, вул. Озерна, буд. № 17/1",{"$f":"VLOOKUP(C382,[1]Sheet1!$F:$G,2,0)","v":"Українське курча"}]
[381,"Протасов С.Л., ФОП","ЦБ20025428","м. Миколаїв, вул. Театральна, буд. № 52/2",{"$f":"VLOOKUP(C383,[1]Sheet1!$F:$G,2,0)","v":"Наша Ряба"}]
[382,"Свербиус Світлана Анатоліївна, ФОП","ЦБ-0022531","Київська обл, Рокитнянський р-н, смт Рокитне, вул. Олександра Вишневецького, буд. № 7","Без бренду"]
[383,"Свербиус Світлана Анатоліївна, ФОП","ЦБ10006590","Київська обл, Рокитнянський р-н, смт Рокитне, вул. Вокзальна, буд. № 74",{"$f":"VLOOKUP(C385,[1]Sheet1!$F:$G,2,0)","v":"Наша Ряба"}]
[384,"СТВ ЦЕНТР, ТОВ","ЦБ30089828","м. Ніжин, вул. Шевченка, 16А",{"$f":"VLOOKUP(C386,[1]Sheet1!$F:$G,2,0)","v":"Наша Ряба"}]
[385,"СТВ ЦЕНТР, ТОВ","ЦБ30089829","м. Ніжин, вул. Космонавтів, 43-Г",{"$f":"VLOOKUP(C387,[1]Sheet1!$F:$G,2,0)","v":"Наша Ряба"}]
[386,"СТВ ЦЕНТР, ТОВ","ЦБ30089831","м. Ніжин, вул. Прощенка Станіслава, буд. № 21д",{"$f":"VLOOKUP(C388,[1]Sheet1!$F:$G,2,0)","v":"Наша Ряба"}]
[387,"СТВ ЦЕНТР, ТОВ","ЦБ30089833","с.Гоголів, вул. Київська 167",{"$f":"VLOOKUP(C389,[1]Sheet1!$F:$G,2,0)","v":"Наша Ряба"}]
[388,"СТВ ЦЕНТР, ТОВ","ЦБ30089834","с. Плоске, вул. Нова, 1",{"$f":"VLOOKUP(C390,[1]Sheet1!$F:$G,2,0)","v":"Наша Ряба"}]
[389,"СТВ ЦЕНТР, ТОВ","ЦБ30089835","с. Володькова Дівиця, вул. Центральна, 82",{"$f":"VLOOKUP(C391,[1]Sheet1!$F:$G,2,0)","v":"Наша Ряба"}]
[390,"СТВ ЦЕНТР, ТОВ","ЦБ30089836","м. Носівка, вул. Комунальна, буд. № 2г",{"$f":"VLOOKUP(C392,[1]Sheet1!$F:$G,2,0)","v":"Наша Ряба"}]
[391,"СТВ ЦЕНТР, ТОВ","ЦБ30089837","с. Русанів, вул. Київська, 46",{"$f":"VLOOKUP(C393,[1]Sheet1!$F:$G,2,0)","v":"Їжа Свіжа"}]
[392,"СТВ ЦЕНТР, ТОВ","ЦБ30089838","м. Київ, вул. М. Кибальчича, 19в",{"$f":"VLOOKUP(C394,[1]Sheet1!$F:$G,2,0)","v":"Наша Ряба"}]
[393,"СТВ ЦЕНТР, ТОВ","ЦБ30089839","с. Бобрик, вул. Шевченка, 17",{"$f":"VLOOKUP(C395,[1]Sheet1!$F:$G,2,0)","v":"Наша Ряба"}]
[394,"СТВ ЦЕНТР, ТОВ","ЦБ30089840","с. Богданівка, вул. Богдана Хмельницького 163",{"$f":"VLOOKUP(C396,[1]Sheet1!$F:$G,2,0)","v":"Наша Ряба"}]
[395,"СТВ ЦЕНТР, ТОВ","ЦБ30089841","смт. Десна, вул. Довженка, 46а/12",{"$f":"VLOOKUP(C397,[1]Sheet1!$F:$G,2,0)","v":"Наша Ряба"}]
[396,"СТВ ЦЕНТР, ТОВ","ЦБ30089842","м. Київ, вул. Ш. Алейхема, 17а",{"$f":"VLOOKUP(C398,[1]Sheet1!$F:$G,2,0)","v":"Наша Ряба"}]
[397,"СТВ ЦЕНТР, ТОВ","ЦБ30089843","селище Десна, вул. Франка Івана, буд. № 44/27",{"$f":"VLOOKUP(C399,[1]Sheet1!$F:$G,2,0)","v":"Наша Ряба"}]
[398,"СТВ ЦЕНТР, ТОВ","ЦБ30089846","м. Березань, вул. Шевченків Шлях, 141А",{"$f":"VLOOKUP(C400,[1]Sheet1!$F:$G,2,0)","v":"Наша Ряба"}]
[399,"СТВ ЦЕНТР, ТОВ","ЦБ30089847","смт. Баришівка, вул. Софіївська 30а",{"$f":"VLOOKUP(C401,[1]Sheet1!$F:$G,2,0)","v":"Наша Ряба"}]
[400,"СТВ ЦЕНТР, ТОВ","ЦБ30089848","м.Переяслов, вул.Богдана Хмельницького 32",{"$f":"VLOOKUP(C402,[1]Sheet1!$F:$G,2,0)","v":"Наша Ряба"}]
[401,"СТВ ЦЕНТР, ТОВ","ЦБ30089850","с.Ревне, вул.Шкільна 8-Б",{"$f":"VLOOKUP(C403,[1]Sheet1!$F:$G,2,0)","v":"Наша Ряба"}]
[402,"СТВ ЦЕНТР, ТОВ","ЦБ30089851","с. Сеньківка, вул. Миру 2-Г",{"$f":"VLOOKUP(C404,[1]Sheet1!$F:$G,2,0)","v":"Наша Ряба"}]
[403,"СТВ ЦЕНТР, ТОВ","ЦБ30089852","с. Кучаків, вул. Гетьмана Івана Суліми 70-Б",{"$f":"VLOOKUP(C405,[1]Sheet1!$F:$G,2,0)","v":"Наша Ряба"}]
[404,"СТВ ЦЕНТР, ТОВ","ЦБ30089853","м. Переяслав-Хмельницький, вул. Богдана Хмельницького, 102",{"$f":"VLOOKUP(C406,[1]Sheet1!$F:$G,2,0)","v":"Наша Ряба"}]
[405,"СТВ ЦЕНТР, ТОВ","ЦБ30089856","м. Славутич, кв. Поліський, буд. № 60",{"$f":"VLOOKUP(C407,[1]Sheet1!$F:$G,2,0)","v":"М'ясомаркет"}]
[406,"СТВ ЦЕНТР, ТОВ","ЦБ30093592","Київська обл. обл., Вишгородський р-н, Славутич, пл. Привокзальна буд.№ 7, НР01",{"$f":"VLOOKUP(C408,[1]Sheet1!$F:$G,2,0)","v":"Наша Ряба"}]
[407,"СТВ ЦЕНТР, ТОВ","ЦБ30093605","м. Чернігів, просп. Левка Лук'яненка, буд. № 17, НР22",{"$f":"VLOOKUP(C409,[1]Sheet1!$F:$G,2,0)","v":"Наша Ряба"}]
[408,"СТВ ЦЕНТР, ТОВ","ЦБ30093606","Чернігівська обл. обл., Чернігівський р-н, Чернігів, вул. Льотна буд.№ 10А, НР24",{"$f":"VLOOKUP(C410,[1]Sheet1!$F:$G,2,0)","v":"Їжа Свіжа"}]
[409,"СТВ ЦЕНТР, ТОВ","ЦБ30093609","Чернігівська обл. обл., Ніжинський р-н, Борзна, вул. Куліша буд.№ 108, НР02",{"$f":"VLOOKUP(C411,[1]Sheet1!$F:$G,2,0)","v":"Наша Ряба"}]
[410,"СТВ ЦЕНТР, ТОВ","ЦБ30093611","Чернігівська обл. обл., Чернігівський р-н, Чернігів, вул. П’ятницька буд.№ 74А, НР20",{"$f":"VLOOKUP(C412,[1]Sheet1!$F:$G,2,0)","v":"Наша Ряба"}]
[411,"СТВ ЦЕНТР, ТОВ","ЦБ30093614","Чернігівська обл. обл., Чернігівський р-н, Чернігів, просп. Миру буд.№ 203, НР25",{"$f":"VLOOKUP(C413,[1]Sheet1!$F:$G,2,0)","v":"Наша Ряба"}]
[412,"СТВ ЦЕНТР, ТОВ","ЦБ30093615","Чернігівська обл. обл., Чернігівський р-н, Чернігів, вул. Мазепи Івана буд.№ 55, НР39","Наша Ряба"]
[413,"СТВ ЦЕНТР, ТОВ","ЦБ30093616","м. Чернігів, вул. Національної Гвардії, буд. № 37, НР11",{"$f":"VLOOKUP(C415,[1]Sheet1!$F:$G,2,0)","v":"Наша Ряба"}]
[414,"СТВ ЦЕНТР, ТОВ","ЦБ30093618","Чернігівська обл. обл., Чернігівський р-н, Чернігів, вул. Ринкова буд.№ 1, місце 60, НР19",{"$f":"VLOOKUP(C416,[1]Sheet1!$F:$G,2,0)","v":"Наша Ряба"}]
[415,"СТВ ЦЕНТР, ТОВ","ЦБ30093620","Чернігівська обл. обл., Чернігівський р-н, Городня, вул. 1-го Травня буд.№ 196, НР04",{"$f":"VLOOKUP(C417,[1]Sheet1!$F:$G,2,0)","v":"Наша Ряба"}]
[416,"СТВ ЦЕНТР, ТОВ","ЦБ30093621","м. Городня, вул. Чернігівська, буд. № 7, НР06",{"$f":"VLOOKUP(C418,[1]Sheet1!$F:$G,2,0)","v":"Наша Ряба"}]
[417,"СТВ ЦЕНТР, ТОВ","ЦБ30093622","Чернігівська обл. обл., Корюківський р-н, Сновськ, вул. Залізнична буд.№ 15, НР38",{"$f":"VLOOKUP(C419,[1]Sheet1!$F:$G,2,0)","v":"Наша Ряба"}]
[418,"СТВ ЦЕНТР, ТОВ","ЦБ30093624","Чернігівська обл, Корюківський р-н, м. Мена, вул. Шевченка, буд. № 1, НР07",{"$f":"VLOOKUP(C420,[1]Sheet1!$F:$G,2,0)","v":"Наша Ряба"}]
[419,"СТВ ЦЕНТР, ТОВ","ЦБ30093632","Чернігівська обл. обл., Ніжинський р-н, Бобровиця, вул. Незалежності буд.№ 29А, НР03",{"$f":"VLOOKUP(C421,[1]Sheet1!$F:$G,2,0)","v":"Наша Ряба"}]
[420,"СТВ ЦЕНТР, ТОВ","ЦБ30093635","Чернігівська обл. обл., Чернігівський р-н, с-ще Ріпки, вул. Святомиколаївська буд.№ 105А, НР34",{"$f":"VLOOKUP(C422,[1]Sheet1!$F:$G,2,0)","v":"Наша Ряба"}]
[421,"СТВ ЦЕНТР, ТОВ","ЦБ30093638","Чернігівська обл, Корюківський р-н, селище Сосниця, вул. Чернігівська, буд. № 34, НР35",{"$f":"VLOOKUP(C423,[1]Sheet1!$F:$G,2,0)","v":"Їжа Свіжа"}]
[422,"СТВ ЦЕНТР, ТОВ","ЦБ30070075","м. Харків, вул. Амосова, буд. № 25",{"$f":"VLOOKUP(C424,[1]Sheet1!$F:$G,2,0)","v":"Їжа Свіжа"}]
[423,"СТВ ЦЕНТР, ТОВ","ЦБ30045062","м. Харків, вул. Валентинівська, буд. № 21",{"$f":"VLOOKUP(C425,[1]Sheet1!$F:$G,2,0)","v":"Їжа Свіжа"}]
[424,"СТВ ЦЕНТР, ТОВ","ЦБ30013939","м. Харків, вул. Вальтера Академіка, буд. № 6А",{"$f":"VLOOKUP(C426,[1]Sheet1!$F:$G,2,0)","v":"Наша Ряба"}]
[425,"СТВ ЦЕНТР, ТОВ","ЦБ30014018","м. Харків, вул. Різдвяна, буд. № 33,  (Центральний ринок, кіоск 8)",{"$f":"VLOOKUP(C427,[1]Sheet1!$F:$G,2,0)","v":"Наша Ряба"}]
[426,"СТВ ЦЕНТР, ТОВ","ЦБ30074712","Харківська обл, Чугуївський р-н, м. Зміїв, вул. Залізнична, буд. № 126",{"$f":"VLOOKUP(C428,[1]Sheet1!$F:$G,2,0)","v":"М'ясомаркет"}]
[427,"СТВ ЦЕНТР, ТОВ","ЦБ30014034","Харківська обл, м. Люботин, вул. Шевченка, буд. № 9",{"$f":"VLOOKUP(C429,[1]Sheet1!$F:$G,2,0)","v":"Наша Ряба"}]
[428,"Сумська м'ясна компанія, ТОВ","ЦБ10015325","Сумська обл, Буринський р-н, м. Буринь, вул. Ринкова, буд. № 1",{"$f":"VLOOKUP(C430,[1]Sheet1!$F:$G,2,0)","v":"Наша Ряба"}]
[429,"Сумська м'ясна компанія, ТОВ","ЦБ10171999","Сумська обл, м. Конотоп, пл. Ринок, буд. № 23",{"$f":"VLOOKUP(C431,[1]Sheet1!$F:$G,2,0)","v":"Наша Ряба"}]
[430,"Сумська м'ясна компанія, ТОВ","ЦБ10143117","м. Суми, вул. Героїв Крут, буд. № 36Б",{"$f":"VLOOKUP(C432,[1]Sheet1!$F:$G,2,0)","v":"Наша Ряба"}]
[431,"Сумська м'ясна компанія, ТОВ","ЦБ10110092","м. Суми, вул. Чорновола, буд. № 78",{"$f":"VLOOKUP(C433,[1]Sheet1!$F:$G,2,0)","v":"Наша Ряба"}]
[432,"Сумська м'ясна компанія, ТОВ","ЦБ20084097","Сумська обл, Охтирський р-н, м. Тростянець, вул. Вознесенська, буд. № 3/4",{"$f":"VLOOKUP(C434,[1]Sheet1!$F:$G,2,0)","v":"Їжа Свіжа"}]
[433,"Сумська м'ясна компанія, ТОВ","ЦБ10011980","Сумська обл, м. Шостка, вул. Свободи, буд. № 16",{"$f":"VLOOKUP(C435,[1]Sheet1!$F:$G,2,0)","v":"Наша Ряба"}]
[434,"Сумська м'ясна компанія, ТОВ","ЦБ20068794","Сумська обл, м. Конотоп, вул. Клубна (р-н буд. № 127 та АТБ)",{"$f":"VLOOKUP(C436,[1]Sheet1!$F:$G,2,0)","v":"Їжа Свіжа"}]
[435,"Сумська м'ясна компанія, ТОВ","ЦБ20064613","Сумська обл, Охтирський р-н, м. Тростянець, вул. Благовіщенська, буд. № 24А",{"$f":"VLOOKUP(C437,[1]Sheet1!$F:$G,2,0)","v":"Їжа Свіжа"}]
[436,"Сумська м'ясна компанія, ТОВ","ЦБ20076911","Полтавська обл, Полтавський р-н, м. Полтава, вул. Сінна, буд. № 32А",{"$f":"VLOOKUP(C438,[1]Sheet1!$F:$G,2,0)","v":"Їжа Свіжа"}]
[437,"Сумська м'ясна компанія, ТОВ","ЦБ20061027","м. Суми, вул. Штепівська, буд. № 1",{"$f":"VLOOKUP(C439,[1]Sheet1!$F:$G,2,0)","v":"М'ясомаркет"}]
[438,"Сумська м'ясна компанія, ТОВ","ЦБ30015931","м. Суми, вул. Героїв Крут, буд. № 66Б",{"$f":"VLOOKUP(C440,[1]Sheet1!$F:$G,2,0)","v":"Їжа Свіжа"}]
[439,"Сумська м'ясна компанія, ТОВ","ЦБ20035273","м. Суми, пр-т. Михайла Лушпи, буд. № 39а",{"$f":"VLOOKUP(C441,[1]Sheet1!$F:$G,2,0)","v":"М'ясомаркет"}]
[440,"Сумська м'ясна компанія, ТОВ","ЦБ10097567","м. Суми, вул. Сумської тероборони, буд. № 59/4",{"$f":"VLOOKUP(C442,[1]Sheet1!$F:$G,2,0)","v":"М'ясомаркет"}]
[441,"Сумська м'ясна компанія, ТОВ","ЦБ10110682","Сумська обл, м. Глухів, вул. Києво-Московська, буд. № 41А",{"$f":"VLOOKUP(C443,[1]Sheet1!$F:$G,2,0)","v":"М'ясомаркет"}]
[442,"Сумська м'ясна компанія, ТОВ","ЦБ10012691","Сумська обл, м. Охтирка, вул. Батюка, буд. № 32",{"$f":"VLOOKUP(C444,[1]Sheet1!$F:$G,2,0)","v":"М'ясомаркет"}]
[443,"Сумська м'ясна компанія, ТОВ","ЦБ10104004","Сумська обл, Кролевецький р-н, м. Кролевець, вул. Українки Лесі, буд. № 11а",{"$f":"VLOOKUP(C445,[1]Sheet1!$F:$G,2,0)","v":"М'ясомаркет"}]
[444,"Сумська м'ясна компанія, ТОВ","ЦБ10141741","м. Суми, вул. Троїцька, буд. № 29",{"$f":"VLOOKUP(C446,[1]Sheet1!$F:$G,2,0)","v":"М'ясомаркет"}]
[445,"Сумська м'ясна компанія, ТОВ","ЦБ10086536","Сумська обл, м. Охтирка, вул. Армійська, буд. № 1",{"$f":"VLOOKUP(C447,[1]Sheet1!$F:$G,2,0)","v":"М'ясомаркет"}]
[446,"Сумська м'ясна компанія, ТОВ","ЦБ10212247","Сумська обл, м. Конотоп, пр-т. Мира, буд. № 83",{"$f":"VLOOKUP(C448,[1]Sheet1!$F:$G,2,0)","v":"М'ясомаркет"}]
[447,"Сумська м'ясна компанія, ТОВ","ЦБ10022005","Сумська обл, Шосткинський р-н, смт Вороніж, вул. Київська, буд. № 9",{"$f":"VLOOKUP(C449,[1]Sheet1!$F:$G,2,0)","v":"М'ясомаркет"}]
[448,"Сумська м'ясна компанія, ТОВ","ЦБ20002813","м. Суми, вул. Роменська, буд. № 77",{"$f":"VLOOKUP(C450,[1]Sheet1!$F:$G,2,0)","v":"М'ясомаркет"}]
[449,"Сумська м'ясна компанія, ТОВ","ЦБ10097210","Сумська обл, м. Глухів, вул. Терещенко, буд. № 57",{"$f":"VLOOKUP(C451,[1]Sheet1!$F:$G,2,0)","v":"М'ясомаркет"}]
[450,"Сумська м'ясна компанія, ТОВ","ЦБ20068630","Сумська обл, м. Шостка, вул. Свободи, буд. № 44/46",{"$f":"VLOOKUP(C452,[1]Sheet1!$F:$G,2,0)","v":"М'ясомаркет"}]
[451,"Сумська м'ясна компанія, ТОВ","ЦБ10151541","Сумська обл, м. Конотоп, вул. Братів Лузанів, буд. № 56",{"$f":"VLOOKUP(C453,[1]Sheet1!$F:$G,2,0)","v":"М'ясомаркет"}]
[452,"Сумська м'ясна компанія, ТОВ","ЦБ20064570","Полтавська обл, Полтавський р-н, смт Котельва, вул. Полтавський Шлях, буд. № 215",{"$f":"VLOOKUP(C454,[1]Sheet1!$F:$G,2,0)","v":"М'ясомаркет"}]
[453,"Сумська м'ясна компанія, ТОВ","ЦБ20067772","м. Полтава, вул. Небесної Сотні, буд. № 116",{"$f":"VLOOKUP(C455,[1]Sheet1!$F:$G,2,0)","v":"М'ясомаркет"}]
[454,"Сумська м'ясна компанія, ТОВ","ЦБ20067775","м. Полтава, вул. Європейська, буд. № 104",{"$f":"VLOOKUP(C456,[1]Sheet1!$F:$G,2,0)","v":"М'ясомаркет"}]
[455,"Сумська м'ясна компанія, ТОВ","ЦБ20079413","м. Суми, вул. Холодноярської бригади, буд. № 22",{"$f":"VLOOKUP(C457,[1]Sheet1!$F:$G,2,0)","v":"М'ясомаркет"}]
[456,"Сумська м'ясна компанія, ТОВ","ЦБ20019170","м. Суми, вул. Революції Гідності, буд. № 3А",{"$f":"VLOOKUP(C458,[1]Sheet1!$F:$G,2,0)","v":"М'ясомаркет"}]
[457,"Сумська м'ясна компанія, ТОВ","ЦБ10014971","м. Суми, пр-т. Михайла Лушпи, буд. № 13",{"$f":"VLOOKUP(C459,[1]Sheet1!$F:$G,2,0)","v":"М'ясомаркет"}]
[458,"Сумська м'ясна компанія, ТОВ","ЦБ20067773","м. Полтава, вул. Олександра Оксаченка, буд. № 39",{"$f":"VLOOKUP(C460,[1]Sheet1!$F:$G,2,0)","v":"М'ясомаркет"}]
[459,"Сумська м'ясна компанія, ТОВ","ЦБ20021641","Сумська обл, м. Конотоп, вул. Євгена Коновальця, буд. № 1, киоск №4",{"$f":"VLOOKUP(C461,[1]Sheet1!$F:$G,2,0)","v":"М'ясомаркет"}]
[460,"Сумська м'ясна компанія, ТОВ","ЦБ20077645","Полтавська обл, Полтавський р-н, м. Полтава, вул. Соборності, буд. № 64Б",{"$f":"VLOOKUP(C462,[1]Sheet1!$F:$G,2,0)","v":"М'ясомаркет"}]
[461,"Сумська м'ясна компанія, ТОВ","ЦБ20030463","м. Суми, вул. Петропавлівська, буд. № 76, \"Мясомаркет\", Мясорубка, 9",{"$f":"VLOOKUP(C463,[1]Sheet1!$F:$G,2,0)","v":"М'ясомаркет"}]
[462,"Сумська м'ясна компанія, ТОВ","ЦБ10086661","Сумська обл, м. Шостка, вул. Озерна, буд. № 39",{"$f":"VLOOKUP(C464,[1]Sheet1!$F:$G,2,0)","v":"Наша Ряба"}]
[463,"Сумська м'ясна компанія, ТОВ","ЦБ10014330","м. Суми, вул. Збройних Сил України, буд. № 21",{"$f":"VLOOKUP(C465,[1]Sheet1!$F:$G,2,0)","v":"Наша Ряба"}]
[464,"Сумська м'ясна компанія, ТОВ","ЦБ10031240","Сумська обл, Лебедин, м. Лебедин, вул. Соборна, буд. № 4а",{"$f":"VLOOKUP(C466,[1]Sheet1!$F:$G,2,0)","v":"Наша Ряба"}]
[465,"Сумська м'ясна компанія, ТОВ","ЦБ10013825","м. Суми, просп. Перемоги, буд. № 111",{"$f":"VLOOKUP(C467,[1]Sheet1!$F:$G,2,0)","v":"Їжа Свіжа"}]
[466,"Сумська м'ясна компанія, ТОВ","ЦБ10086513","Сумська обл, м. Шостка, вул. Бульварна, буд. № 1",{"$f":"VLOOKUP(C468,[1]Sheet1!$F:$G,2,0)","v":"Наша Ряба"}]
[467,"Сумська м'ясна компанія, ТОВ","ЦБ20083022","Сумська обл, м. Ромни, вул. Руденка, буд. № 2",{"$f":"VLOOKUP(C469,[1]Sheet1!$F:$G,2,0)","v":"М'ясомаркет"}]
[468,"Сумська м'ясна компанія, ТОВ","ЦБ10012623","м. Суми, вул. Холодноярської бригади, буд. № 8",{"$f":"VLOOKUP(C470,[1]Sheet1!$F:$G,2,0)","v":"Їжа Свіжа"}]
[469,"Сумська м'ясна компанія, ТОВ","ЦБ10015466","Сумська обл, Недригайлівський р-н, смт Недригайлів, вул. Щебетунів, буд. № 22",{"$f":"VLOOKUP(C471,[1]Sheet1!$F:$G,2,0)","v":"Їжа Свіжа"}]
[470,"Сумська м'ясна компанія, ТОВ","ЦБ10229434","Сумська обл, м. Охтирка, вул. Батюка, буд. № 9",{"$f":"VLOOKUP(C472,[1]Sheet1!$F:$G,2,0)","v":"Наша Ряба"}]
[471,"Сумська м'ясна компанія, ТОВ","ЦБ20085232","Сумська обл, Конотопський р-н, м. Путивль, вул. Вознесенська, буд. № 50/2",{"$f":"VLOOKUP(C473,[1]Sheet1!$F:$G,2,0)","v":"М'ясомаркет"}]
[472,"Сумська м'ясна компанія, ТОВ","ЦБ20090028","Сумська обл, м. Шостка, вул. Свободи, буд. № 19А",{"$f":"VLOOKUP(C474,[1]Sheet1!$F:$G,2,0)","v":"М'ясомаркет"}]
[473,"Сумська м'ясна компанія, ТОВ","ЦБ20090042","Сумська обл, м. Ромни, бул. Свободи, буд. № 20/4",{"$f":"VLOOKUP(C475,[1]Sheet1!$F:$G,2,0)","v":"М'ясомаркет"}]
[474,"Сумська м'ясна компанія, ТОВ","ЦБ30028320","Полтавська обл, Полтавський р-н, м. Зіньків, вул. Воздвиженська, буд. № 47",{"$f":"VLOOKUP(C476,[1]Sheet1!$F:$G,2,0)","v":"М'ясомаркет"}]
[475,"Сумська м'ясна компанія, ТОВ","ЦБ20079406","м. Суми, вул. Харківська, буд. № 12",{"$f":"VLOOKUP(C477,[1]Sheet1!$F:$G,2,0)","v":"М'ясомаркет"}]
[476,"Сумська м'ясна компанія, ТОВ","ЦБ10037534","Сумська обл, м. Шостка, вул. Робоча, буд. № 15",{"$f":"VLOOKUP(C478,[1]Sheet1!$F:$G,2,0)","v":"М'ясомаркет"}]
[477,"Сумська м'ясна компанія, ТОВ","ЦБ30074726","м. Суми, вул. Засумська, буд. № 1",{"$f":"VLOOKUP(C479,[1]Sheet1!$F:$G,2,0)","v":"М'ясомаркет"}]
[478,"Сумська м'ясна компанія, ТОВ","ЦБ30085613","Сумська обл, м. Шостка, вул. Чернігівська, буд. № 15А",{"$f":"VLOOKUP(C480,[1]Sheet1!$F:$G,2,0)","v":"Їжа Свіжа"}]
[479,"Сумська м'ясна компанія, ТОВ","ЦБ30098657","Полтавська обл, Миргородський р-н, м. Гадяч, вул. Гетьманська, буд. № 19",{"$f":"VLOOKUP(C481,[1]Sheet1!$F:$G,2,0)","v":"Їжа Свіжа"}]
[480,"Сумська м'ясна компанія, ТОВ","ЦБ10013103","Сумська обл., Новгород Сіверський,вул.Князя Ігоря,9а","Без бренду"]
[481,"Сумська м'ясна компанія, ТОВ","ЦБ30036105","Полтавська обл, Полтавський р-н, м. Решетилiвка, вул. Покровська, буд. № 2, корпус 5",{"$f":"VLOOKUP(C483,[1]Sheet1!$F:$G,2,0)","v":"М'ясомаркет"}]
[482,"Телешева Ю.В.,ФОП","ЦБ10168170","Дніпропетровська обл, Васильківський р-н, смт Васильківка, вул. Перемоги, буд. № 201",{"$f":"VLOOKUP(C484,[1]Sheet1!$F:$G,2,0)","v":"Їжа Свіжа"}]
[483,"Ткаченко Марина Юріївна, ФОП","ЦБ20031085","Київська обл, Обухівський р-н, м. Українка, вул. Юності, буд. № 4/20, новий ринок",{"$f":"VLOOKUP(C485,[1]Sheet1!$F:$G,2,0)","v":"Їжа Свіжа"}]
[484,"Ткаченко Марина Юріївна, ФОП","ЦБ10034666","Київська обл, Обухівський р-н, м. Українка, вул. Юності, буд. № 6Г",{"$f":"VLOOKUP(C486,[1]Sheet1!$F:$G,2,0)","v":"Їжа Свіжа"}]
[485,"Ткаченко Марина Юріївна, ФОП","ЦБ10218762","Київська обл, Обухівський р-н, с. Трипілля, вул. Шевченка, буд. № 62",{"$f":"VLOOKUP(C487,[1]Sheet1!$F:$G,2,0)","v":"Їжа Свіжа"}]
[486,"ТОВ МХП-Рітейл","ЦБ20047522","ММ № 001 м.Київ, вул. Єлизавети Чавдар, 13","М'ясомаркет"]
[487,"ТОВ МХП-Рітейл","ЦБ20047523","ММ № 002 м.Київ, пр-т Академіка Глушкова, 9в","М'ясомаркет"]
[488,"ТОВ МХП-Рітейл","ЦБ20055033","ММ № 006 м.Київ, вул. Кондратюка Юрія, 5, приміщення 855","М'ясомаркет"]
[489,"ТОВ МХП-Рітейл","ЦБ20049945","ММ № 007 м.Петропавлівська Борщагівка, вул. Львівська, 1а","М'ясомаркет"]
[490,"ТОВ МХП-Рітейл","ЦБ20055034","ММ № 008 м.Київ, вул. Бориспільська, 26ж, приміщення 82/1","М'ясомаркет"]
[491,"ТОВ МХП-Рітейл","ЦБ20050956","ММ № 009 м.Київ, вул. Польова, 73, приміщення 106","М'ясомаркет"]
[492,"ТОВ МХП-Рітейл","ЦБ20057070","ММ № 011 м.Київ, вул. Михайла Донця, 2а, приміщення 1055","М'ясомаркет"]
[493,"ТОВ МХП-Рітейл","ЦБ20055036","ММ № 012 м.Київ, пров. Ясиноватський, 10","М'ясомаркет"]
[494,"ТОВ МХП-Рітейл","ЦБ20059454","ММ № 020 м.Київ, вул. Каховська, 62а, приміщення 1630","М'ясомаркет"]
[495,"ТОВ МХП-Рітейл","ЦБ20071473","ММ № 025 м.Ладижин, вул. Хлібозаводська, 14","М'ясомаркет"]
[496,"ТОВ МХП-Рітейл","ЦБ20078799","ММ № 026 м.Миронівка, вул. Гетманська, 16","М'ясомаркет"]
[497,"ТОВ МХП-Рітейл","ЦБ20080489","ММ № 027 с.Єлизаветівка, вул. Богдана Хмельницького, 1","М'ясомаркет"]
[498,"ТОВ МХП-Рітейл","ЦБ30001686","ММ № 028 с.Степанці, вул. Польова, 1","М'ясомаркет"]
[499,"ТОВ МХП-Рітейл","ЦБ20091094","ММ № 029 м.Ірпінь, вул. Мечникова, 108","М'ясомаркет"]
[500,"ТОВ МХП-Рітейл","ЦБ30000781","ММ № 030 смт.Іванків, вул. Івана Проскури, 14","М'ясомаркет"]
[501,"ТОВ МХП-Рітейл","ЦБ20083240","ММ № 031 смт.Макарів, вул. Набережна, 3","М'ясомаркет"]
[502,"ТОВ МХП-Рітейл","ЦБ30080454","ММ № 032 с.Софіївська Борщагівка, вул. Зелена, 12, приміщення 27","М'ясомаркет"]
[503,"ТОВ МХП-Рітейл","ЦБ30078920","ММ № 034 с.Мирне, вул. Центральна, 5","М'ясомаркет"]
[504,"ТОВ МХП-Рітейл","ЦБ30076759","ММ № 035 м. Київ, вул. Максимовича, 26","М'ясомаркет"]
[505,"ТОВ МХП-Рітейл","ЦБ30080446","ММ № 036 с.Соф. Борщагівка, пр-т Героїв Небесної Сотні, 34, прим. 138","М'ясомаркет"]
[506,"ТОВ МХП-Рітейл","ЦБ30080455","ММ № 037 смт.Глеваха, вул. Ботанічна 30","М'ясомаркет"]
[507,"ТОВ МХП-Рітейл","ЦБ30080457","ММ № 039 смт.Димер, вул. Шевченко, 2","М'ясомаркет"]
[508,"ТОВ МХП-Рітейл","ЦБ30080441","ММ № 040 м.Обухів вул.Каштанова 14а","М'ясомаркет"]
[509,"ТОВ МХП-Рітейл","ЦБ30080452","ММ № 041 м.Миронівка, вул. Перемоги, 2а","М'ясомаркет"]
[510,"Транссервис, ПП","ЦБ30046253","Київська обл, Обухівський р-н, м. Богуслав, вул. Миколаївська, буд. № 21",{"$f":"VLOOKUP(C512,[1]Sheet1!$F:$G,2,0)","v":"Їжа Свіжа"}]
[511,"Транссервис, ПП","ЦБ30046258","Київська обл, Білоцерківський р-н, м. Сквира, вул. Київська, буд. № 20",{"$f":"VLOOKUP(C513,[1]Sheet1!$F:$G,2,0)","v":"Їжа Свіжа"}]
[512,"Транссервис, ПП","ЦБ30046259","Київська обл, Білоцерківський р-н, м. Сквира, вул. Соборна, буд. № 30",{"$f":"VLOOKUP(C514,[1]Sheet1!$F:$G,2,0)","v":"М'ясомаркет"}]
[513,"Транссервис, ПП","ЦБ30046262","Київська обл, Білоцерківський р-н, м. Тараща, вул. Хмельницького Богдана, буд. № 48а",{"$f":"VLOOKUP(C515,[1]Sheet1!$F:$G,2,0)","v":"Їжа Свіжа"}]
[514,"Транссервис, ПП","ЦБ30058626","Київська обл, Білоцерківський р-н, м. Узин, вул. Авіаторів, буд. № 71",{"$f":"VLOOKUP(C516,[1]Sheet1!$F:$G,2,0)","v":"М'ясомаркет"}]
[515,"Транссервис, ПП","ЦБ30086996","Київська обл, Бучанський р-н, с. Софіївська Борщагівка, вул. Велика Кільцева НП 275",{"$f":"VLOOKUP(C517,[1]Sheet1!$F:$G,2,0)","v":"Їжа Свіжа"}]
[516,"Транссервис, ПП","ЦБ30087102","Київська обл, м. Васильків, вул. Грушевського Михайла, буд. № 13Г","Без бренду"]
[517,"Транссервис, ПП","ЦБ30087113","Київська обл, Вишгородський р-н, с. Демидів, вул. Київська, буд. № 53","Без бренду"]
[518,"Транссервис, ПП","ЦБ30087116","Житомирська обл, Житомирський р-н, смт Попільня, вул. Героїв Майдану, буд. № 56","Без бренду"]
[519,"Транссервис, ПП","ЦБ30087119","Житомирська обл, Бердичівський р-н, смт Ружин, вул. Соборна, буд. № 64А","Без бренду"]
[520,"Транссервис, ПП","ЦБ30087152","Київська обл, Фастівський р-н, смт Глеваха, вул. Підприємницька, буд. № 7",{"$f":"VLOOKUP(C522,[1]Sheet1!$F:$G,2,0)","v":"Наша Ряба"}]
[521,"Транссервис, ПП","ЦБ30087215","Київська обл, м. Васильків, вул. Грушевського Михайла, буд. № 30/1","Без бренду"]
[522,"Транссервис, ПП","ЦБ30087217","Житомирська обл, Бердичівський р-н, м. Андрушівка, вул. Вобяна, буд. № 24","Без бренду"]
[523,"Транссервис, ПП","ЦБ30087219","Київська обл, Бучанський р-н, смт Пісківка, вул. Привокзальна, буд. № 2","Без бренду"]
[524,"Транссервис, ПП","ЦБ30087221","Київська обл, Фастівський р-н, м. Боярка, вул. Молодіжна, буд. № 61А","Без бренду"]
[525,"Транссервис, ПП","ЦБ30087227","Житомирська обл, Житомирський р-н, смт Брусилів, вул. Іларіона Митрополита, буд. № 47","Без бренду"]
[526,"Транссервис, ПП","ЦБ30087237","Київська обл, м. Фастів, пров. Шевченка, буд. № 51а","Без бренду"]
[527,"Транссервис, ПП","ЦБ30087240","Київська обл, Білоцерківський р-н, смт Гребінки, вул. Київська, буд. № 105Б","Без бренду"]
[528,"Універсал-Плюс, ТОВ","ЦБ10020237","Кіровоградська обл., Ульяновський р-н, м. Ульяновка, вул. Героїв України, буд. № 1",{"$f":"VLOOKUP(C530,[1]Sheet1!$F:$G,2,0)","v":"М'ясомаркет"}]
[529,"Універсал-Плюс, ТОВ","ЦБ10021853","Кіровоградська обл., Ульяновський р-н, м. Благовіщенське, вул. Героїв України, буд. № 27",{"$f":"VLOOKUP(C531,[1]Sheet1!$F:$G,2,0)","v":"М'ясомаркет"}]
[530,"Універсал-Плюс, ТОВ","ЦБ10023826","Кіровоградська обл., Гайворонський р-н, м. Гайворон, вул. Василя Стуса, буд. № 25",{"$f":"VLOOKUP(C532,[1]Sheet1!$F:$G,2,0)","v":"Їжа Свіжа"}]
[531,"Універсал-Плюс, ТОВ","ЦБ10133572","Кіровоградська обл., Голованівський р-н, смт Голованівськ, вул. Соборна, буд. № 47",{"$f":"VLOOKUP(C533,[1]Sheet1!$F:$G,2,0)","v":"М'ясомаркет"}]
[532,"Універсал-Плюс, ТОВ","ЦБ10017465","Кіровоградська обл., Голованівський р-н, смт Побузьке, вул. Театральна, буд. № 1",{"$f":"VLOOKUP(C534,[1]Sheet1!$F:$G,2,0)","v":"М'ясомаркет"}]
[533,"Універсал-Плюс, ТОВ","ЦБ10082617","Черкаська обл, Монастирищенський р-н, м. Монастирище, вул. Сагайдачного, буд. № 2",{"$f":"VLOOKUP(C535,[1]Sheet1!$F:$G,2,0)","v":"Їжа Свіжа"}]
[534,"Універсал-Плюс, ТОВ","ЦБ20061171","Черкаська обл, Уманський р-н, м. Монастирище, вул. Соборна, буд. № 111/4",{"$f":"VLOOKUP(C536,[1]Sheet1!$F:$G,2,0)","v":"М'ясомаркет"}]
[535,"Універсал-Плюс, ТОВ","ЦБ10081030","Черкаська обл, м. Умань, вул. Тищика, буд. № 19А",{"$f":"VLOOKUP(C537,[1]Sheet1!$F:$G,2,0)","v":"Їжа Свіжа"}]
[536,"Універсал-Плюс, ТОВ","ЦБ10081034","Черкаська обл, Христинівський р-н, м. Христинівка, вул. Чорновола, буд. № 1а",{"$f":"VLOOKUP(C538,[1]Sheet1!$F:$G,2,0)","v":"М'ясомаркет"}]
[537,"Універсал-Плюс, ТОВ","ЦБ10036464","Кіровоградська обл., Новоархангельський р-н, смт Новоархангельськ, вул. Центральна, буд. № 24",{"$f":"VLOOKUP(C539,[1]Sheet1!$F:$G,2,0)","v":"М'ясомаркет"}]
[538,"Універсал-Плюс, ТОВ","ЦБ20059975","Кіровоградська обл., Кропивницький р-н, м. Бобринець, вул. Базарна, буд. № 165",{"$f":"VLOOKUP(C540,[1]Sheet1!$F:$G,2,0)","v":"М'ясомаркет"}]
[539,"Універсал-Плюс, ТОВ","ЦБ10026354","Кіровоградська обл., Долинський р-н, м. Долинська, вул. Соборності України, буд. № 22А",{"$f":"VLOOKUP(C541,[1]Sheet1!$F:$G,2,0)","v":"М'ясомаркет"}]
[540,"Універсал-Плюс, ТОВ","ЦБ20055475","Кіровоградська обл., м. Знам’янка, вул. Кобзарева, буд. № 28а",{"$f":"VLOOKUP(C542,[1]Sheet1!$F:$G,2,0)","v":"М'ясомаркет"}]
[541,"Універсал-Плюс, ТОВ","ЦБ20054854","Кіровоградська обл., м. Знам’янка, вул. Привокзальна, буд. № 4г",{"$f":"VLOOKUP(C543,[1]Sheet1!$F:$G,2,0)","v":"М'ясомаркет"}]
[542,"Універсал-Плюс, ТОВ","ЦБ10081025","Кіровоградська обл., Знам'янка, смт Знам'янка Друга, вул. Перспективна, (біля ринку)",{"$f":"VLOOKUP(C544,[1]Sheet1!$F:$G,2,0)","v":"Їжа Свіжа"}]
[543,"Універсал-Плюс, ТОВ","ЦБ10029048","Кіровоградська обл., Компаніївський р-н, смт Компаніївка, вул. Перемоги, (біля ринку)",{"$f":"VLOOKUP(C545,[1]Sheet1!$F:$G,2,0)","v":"М'ясомаркет"}]
[544,"Універсал-Плюс, ТОВ","ЦБ10013082","м. Кропивницький, вул. Пашутіна, буд. № 55",{"$f":"VLOOKUP(C546,[1]Sheet1!$F:$G,2,0)","v":"М'ясомаркет"}]
[545,"Універсал-Плюс, ТОВ","ЦБ10013081","м. Кропивницький, вул. Степана Чобану, буд. № 20А",{"$f":"VLOOKUP(C547,[1]Sheet1!$F:$G,2,0)","v":"М'ясомаркет"}]
[546,"Універсал-Плюс, ТОВ","ЦБ10013781","м. Кропивницький, вул. Полтавська, буд. № 81",{"$f":"VLOOKUP(C548,[1]Sheet1!$F:$G,2,0)","v":"М'ясомаркет"}]
[547,"Універсал-Плюс, ТОВ","ЦБ10019247","м. Кропивницький, вул. Каденюка Леоніда, буд. № 7",{"$f":"VLOOKUP(C549,[1]Sheet1!$F:$G,2,0)","v":"М'ясомаркет"}]
[548,"Універсал-Плюс, ТОВ","ЦБ10029047","м. Кропивницький, пл. Вокзальна, буд. № 39Д",{"$f":"VLOOKUP(C550,[1]Sheet1!$F:$G,2,0)","v":"М'ясомаркет"}]
[549,"Універсал-Плюс, ТОВ","ЦБ10013336","м. Кропивницький, вул. Соборна, буд. № 27",{"$f":"VLOOKUP(C551,[1]Sheet1!$F:$G,2,0)","v":"Їжа Свіжа"}]
[550,"Універсал-Плюс, ТОВ","ЦБ10022844","м. Кропивницький, вул. Віктора Френчка, буд. № 13/1",{"$f":"VLOOKUP(C552,[1]Sheet1!$F:$G,2,0)","v":"Їжа Свіжа"}]
[551,"Універсал-Плюс, ТОВ","ЦБ10019470","м. Кропивницький, вул. Варшавська, буд. № 2а",{"$f":"VLOOKUP(C553,[1]Sheet1!$F:$G,2,0)","v":"М'ясомаркет"}]
[552,"Універсал-Плюс, ТОВ","ЦБ10021878","м. Кропивницький, вул. Перша виставкова, буд. № 37М",{"$f":"VLOOKUP(C554,[1]Sheet1!$F:$G,2,0)","v":"М'ясомаркет"}]
[553,"Універсал-Плюс, ТОВ","ЦБ10031467","м. Кропивницький, вул. Євгена Тельнова, буд. № 1а",{"$f":"VLOOKUP(C555,[1]Sheet1!$F:$G,2,0)","v":"М'ясомаркет"}]
[554,"Універсал-Плюс, ТОВ","ЦБ10101005","м. Кропивницький, вул. Мєчнікова, буд. № 42",{"$f":"VLOOKUP(C556,[1]Sheet1!$F:$G,2,0)","v":"Їжа Свіжа"}]
[555,"Універсал-Плюс, ТОВ","ЦБ10103845","м. Кропивницький, вул. Незалежності, буд. № 7",{"$f":"VLOOKUP(C557,[1]Sheet1!$F:$G,2,0)","v":"М'ясомаркет"}]
[556,"Універсал-Плюс, ТОВ","ЦБ10104961","м. Кропивницький, вул. Слободянюка Руслана, буд. № 132",{"$f":"VLOOKUP(C558,[1]Sheet1!$F:$G,2,0)","v":"М'ясомаркет"}]
[557,"Універсал-Плюс, ТОВ","ЦБ10129379","м. Кропивницький, вул. 5-а Лінія, буд. № 5",{"$f":"VLOOKUP(C559,[1]Sheet1!$F:$G,2,0)","v":"Їжа Свіжа"}]
[558,"Універсал-Плюс, ТОВ","ЦБ10141932","м. Кропивницький, вул. Соборна, буд. № 27",{"$f":"VLOOKUP(C560,[1]Sheet1!$F:$G,2,0)","v":"Їжа Свіжа"}]
[559,"Універсал-Плюс, ТОВ","ЦБ10165230","м. Кропивницький, вул. Велика Пермська, буд. № 44",{"$f":"VLOOKUP(C561,[1]Sheet1!$F:$G,2,0)","v":"М'ясомаркет"}]
[560,"Універсал-Плюс, ТОВ","ЦБ10217350","м. Кропивницький, вул. Героїв Маріуполя, буд. № 1",{"$f":"VLOOKUP(C562,[1]Sheet1!$F:$G,2,0)","v":"М'ясомаркет"}]
[561,"Універсал-Плюс, ТОВ","ЦБ20051007","м. Кропивницький, вул. Віктора Френчка, буд. № 25/1",{"$f":"VLOOKUP(C563,[1]Sheet1!$F:$G,2,0)","v":"М'ясомаркет"}]
[562,"Універсал-Плюс, ТОВ","ЦБ10031700","м. Кропивницький, вул. Архангельська, буд. № 5а",{"$f":"VLOOKUP(C564,[1]Sheet1!$F:$G,2,0)","v":"М'ясомаркет"}]
[563,"Універсал-Плюс, ТОВ","ЦБ10108726","м. Кропивницький, вул. Героїв України, буд. № 24/27, корпус 2",{"$f":"VLOOKUP(C565,[1]Sheet1!$F:$G,2,0)","v":"М'ясомаркет"}]
[564,"Універсал-Плюс, ТОВ","ЦБ10011286","Кіровоградська обл., Кировоградский, смт Нове, вул. Металургів, буд. № 5",{"$f":"VLOOKUP(C566,[1]Sheet1!$F:$G,2,0)","v":"М'ясомаркет"}]
[565,"Універсал-Плюс, ТОВ","ЦБ10023356","Кіровоградська обл., Олександрівський р-н, смт Олександрівка, вул. Незалежності України, буд. № 31",{"$f":"VLOOKUP(C567,[1]Sheet1!$F:$G,2,0)","v":"М'ясомаркет"}]
[566,"Універсал-Плюс, ТОВ","ЦБ10013941","Кіровоградська обл, Добровеличківський р-н, смт Добровеличківка, вул. Поповича, буд. № 20",{"$f":"VLOOKUP(C568,[1]Sheet1!$F:$G,2,0)","v":"М'ясомаркет"}]
[567,"Універсал-Плюс, ТОВ","ЦБ10013970","Кіровоградська обл, Маловисківський р-н, м. Мала Виска, вул. Шевченка, буд. № 5В",{"$f":"VLOOKUP(C569,[1]Sheet1!$F:$G,2,0)","v":"Їжа Свіжа"}]
[568,"Універсал-Плюс, ТОВ","ЦБ10090460","Кіровоградська обл., Маловисківський р-н, м. Мала Виска, вул. Центральна, буд. № 37",{"$f":"VLOOKUP(C570,[1]Sheet1!$F:$G,2,0)","v":"Їжа Свіжа"}]
[569,"Універсал-Плюс, ТОВ","ЦБ10222680","Кіровоградська обл., Маловисківський р-н, м. Мала Виска, вул. Травнева, буд. № 2/5",{"$f":"VLOOKUP(C571,[1]Sheet1!$F:$G,2,0)","v":"Їжа Свіжа"}]
[570,"Універсал-Плюс, ТОВ","ЦБ20055478","Кіровоградська обл., Новоукраїнський р-н, м. Мала Виска, вул. Велігіна, буд. № 2д",{"$f":"VLOOKUP(C572,[1]Sheet1!$F:$G,2,0)","v":"М'ясомаркет"}]
[571,"Універсал-Плюс, ТОВ","ЦБ10039018","Кіровоградська обл., Новомиргородський р-н, м. Новомиргород, вул. А. Гуричева, буд. № 52",{"$f":"VLOOKUP(C573,[1]Sheet1!$F:$G,2,0)","v":"М'ясомаркет"}]
[572,"Універсал-Плюс, ТОВ","ЦБ10026041","Кіровоградська обл., Новоукраїнський р-н, м. Новоукраїнка, вул. Соборна, буд. № 39",{"$f":"VLOOKUP(C574,[1]Sheet1!$F:$G,2,0)","v":"М'ясомаркет"}]
[573,"Універсал-Плюс, ТОВ","ЦБ10026052","Кіровоградська обл., Новоукраїнський р-н, м. Новоукраїнка, вул. М.Воронного, буд. № 13",{"$f":"VLOOKUP(C575,[1]Sheet1!$F:$G,2,0)","v":"М'ясомаркет"}]
[574,"Універсал-Плюс, ТОВ","ЦБ10094696","Кіровоградська обл, Добровеличківський р-н, м. Помічна, вул. Перемоги, (біля дому №93)",{"$f":"VLOOKUP(C576,[1]Sheet1!$F:$G,2,0)","v":"М'ясомаркет"}]
[575,"Універсал-Плюс, ТОВ","ЦБ10110078","Кіровоградська обл., Добровеличківський р-н, м. Помічна, вул. Осипенка, пл.Базарна (ринок)",{"$f":"VLOOKUP(C577,[1]Sheet1!$F:$G,2,0)","v":"Їжа Свіжа"}]
[576,"Універсал-Плюс, ТОВ","ЦБ10134536","Кіровоградська обл., Маловисківський р-н, смт Смоліне, вул. Козакова, біля будинку №17",{"$f":"VLOOKUP(C578,[1]Sheet1!$F:$G,2,0)","v":"М'ясомаркет"}]
[577,"Універсал-Плюс, ТОВ","ЦБ20087333","м. Кропивницький, вул. Соборна, буд. № 18",{"$f":"VLOOKUP(C579,[1]Sheet1!$F:$G,2,0)","v":"М'ясомаркет"}]
[578,"Універсал-Плюс, ТОВ","ЦБ20090696","Кіровоградська обл., м. Гайворон, вул. Центральна, 97","Без бренду"]
[579,"Універсал-Плюс, ТОВ","ЦБ30069609","Кіровоградська обл., Кропивницький р-н, м. Долинська, вул. Ольберта Бочковського, (біля недобудованого дитячого садка)",{"$f":"VLOOKUP(C581,[1]Sheet1!$F:$G,2,0)","v":"М'ясомаркет"}]
[580,"ФЛОРЕНТЕС, ПП","ЦБ20012819","Волинська обл, Маневицький р-н, с. Прилісне, вул. Сойне, буд. № 1",{"$f":"VLOOKUP(C582,[1]Sheet1!$F:$G,2,0)","v":"Наша Ряба"}]
[581,"ФЛОРЕНТЕС, ПП","ЦБ10231580","Волинська обл, Турійський р-н, смт Турійськ, вул. Луцька, буд. № 2",{"$f":"VLOOKUP(C583,[1]Sheet1!$F:$G,2,0)","v":"Їжа Свіжа"}]
[582,"ФЛОРЕНТЕС, ПП","ЦБ10243364","Волинська обл, Ківерцівський р-н, селище Олика, вул. Шевченка, буд. № 33",{"$f":"VLOOKUP(C584,[1]Sheet1!$F:$G,2,0)","v":"Їжа Свіжа"}]
[583,"ФЛОРЕНТЕС, ПП","ЦБ10243336","Волинська обл, Ківерцівський р-н, смт Цумань, вул. Васильєва, буд. № 2",{"$f":"VLOOKUP(C585,[1]Sheet1!$F:$G,2,0)","v":"Їжа Свіжа"}]
[584,"ФЛОРЕНТЕС, ПП","ЦБ20065161","Рівненська обл, Вараський р-н, смт Володимирець, вул. Соборна, буд. № 22",{"$f":"VLOOKUP(C586,[1]Sheet1!$F:$G,2,0)","v":"Їжа Свіжа"}]
[585,"ФЛОРЕНТЕС, ПП","ЦБ20031305","Рівненська обл, м. Дубно, вул. Мирогощанська, буд. № 1",{"$f":"VLOOKUP(C587,[1]Sheet1!$F:$G,2,0)","v":"М'ясомаркет"}]
[586,"ФЛОРЕНТЕС, ПП","ЦБ20039560","Волинська обл, Камінь-Каширський р-н, м. Камінь-Каширський, вул. Шевченка, буд. № 9",{"$f":"VLOOKUP(C588,[1]Sheet1!$F:$G,2,0)","v":"М'ясомаркет"}]
[587,"ФЛОРЕНТЕС, ПП","ЦБ20039559","м. Луцьк, вул. Грушевського, буд. № 3",{"$f":"VLOOKUP(C589,[1]Sheet1!$F:$G,2,0)","v":"М'ясомаркет"}]
[588,"ФЛОРЕНТЕС, ПП","ЦБ10211913","Волинська обл, м. Ковель, вул. Незалежності, буд. № 72",{"$f":"VLOOKUP(C590,[1]Sheet1!$F:$G,2,0)","v":"Їжа Свіжа"}]
[589,"ФЛОРЕНТЕС, ПП","ЦБ10213877","Волинська обл, Іваничівський р-н, селище Іваничі, вул. Грушевського, буд. № 1",{"$f":"VLOOKUP(C591,[1]Sheet1!$F:$G,2,0)","v":"Їжа Свіжа"}]
[590,"ФЛОРЕНТЕС, ПП","ЦБ10175654","Волинська обл, Маневицький р-н, смт Маневичі, вул. Луцька, буд. № 8",{"$f":"VLOOKUP(C592,[1]Sheet1!$F:$G,2,0)","v":"Їжа Свіжа"}]
[591,"ФЛОРЕНТЕС, ПП","ЦБ10131355","Волинська обл, м. Ковель, вул. Володимира Кияна, буд. № 59",{"$f":"VLOOKUP(C593,[1]Sheet1!$F:$G,2,0)","v":"Їжа Свіжа"}]
[592,"ФЛОРЕНТЕС, ПП","ЦБ10160353","Волинська обл, м. Ковель, вул. Володимирська, буд. № 78/а",{"$f":"VLOOKUP(C594,[1]Sheet1!$F:$G,2,0)","v":"Їжа Свіжа"}]
[593,"ФЛОРЕНТЕС, ПП","ЦБ10111338","Волинська обл, м. Ковель, вул. Лесі Українки, буд. № 30",{"$f":"VLOOKUP(C595,[1]Sheet1!$F:$G,2,0)","v":"М'ясомаркет"}]
[594,"ФЛОРЕНТЕС, ПП","ЦБ10111341","Волинська обл, Ковельський р-н, смт Люблинець, вул. Лесі Українки, буд. № 5/Д",{"$f":"VLOOKUP(C596,[1]Sheet1!$F:$G,2,0)","v":"Їжа Свіжа"}]
[595,"ФЛОРЕНТЕС, ПП","ЦБ10132171","Волинська обл, Любомльський р-н, м. Любомль, вул. Соборності, буд. № 2/а",{"$f":"VLOOKUP(C597,[1]Sheet1!$F:$G,2,0)","v":"Наша Ряба"}]
[596,"ФЛОРЕНТЕС, ПП","ЦБ10205405","Волинська обл, Любомльський р-н, м. Любомль, вул. 1-го Травня, буд. № 29а",{"$f":"VLOOKUP(C598,[1]Sheet1!$F:$G,2,0)","v":"Їжа Свіжа"}]
[597,"ФЛОРЕНТЕС, ПП","ЦБ10171399","Волинська обл, м. Нововолинськ, вул. Св.Володимира, буд. № 1",{"$f":"VLOOKUP(C599,[1]Sheet1!$F:$G,2,0)","v":"Їжа Свіжа"}]
[598,"ФЛОРЕНТЕС, ПП","ЦБ10190775","Волинська обл, м. Нововолинськ, вул. Шахтарська, буд. № 1",{"$f":"VLOOKUP(C600,[1]Sheet1!$F:$G,2,0)","v":"М'ясомаркет"}]
[599,"ФЛОРЕНТЕС, ПП","ЦБ10111331","Волинська обл, м. Ковель, вул. Відродження, буд. № 4",{"$f":"VLOOKUP(C601,[1]Sheet1!$F:$G,2,0)","v":"М'ясомаркет"}]
[600,"ФЛОРЕНТЕС, ПП","ЦБ10158856","Волинська обл, Ратнівський р-н, смт Ратне, вул. Центральна, буд. № 44",{"$f":"VLOOKUP(C602,[1]Sheet1!$F:$G,2,0)","v":"Їжа Свіжа"}]
[601,"ФЛОРЕНТЕС, ПП","ЦБ10153054","Волинська обл, Рожищенський р-н, м. Рожище, вул. Незалежності, буд. № 50, корпус Ринок Пасаж",{"$f":"VLOOKUP(C603,[1]Sheet1!$F:$G,2,0)","v":"Їжа Свіжа"}]
[602,"ФЛОРЕНТЕС, ПП","ЦБ10192973","Волинська обл, Шацький р-н, смт Шацьк, вул. Степана Бандери, буд. № 13",{"$f":"VLOOKUP(C604,[1]Sheet1!$F:$G,2,0)","v":"Їжа Свіжа"}]
[603,"ФЛОРЕНТЕС, ПП","ЦБ10153055","Волинська обл, Камінь-Каширський р-н, м. Камінь-Каширський, вул. Культури, буд. № 13",{"$f":"VLOOKUP(C605,[1]Sheet1!$F:$G,2,0)","v":"Наша Ряба"}]
[604,"ФЛОРЕНТЕС, ПП","ЦБ10153053","Волинська обл, Ківерцівський р-н, м. Ківерці, вул. Соборності, буд. № 5/а",{"$f":"VLOOKUP(C606,[1]Sheet1!$F:$G,2,0)","v":"Їжа Свіжа"}]
[605,"ФЛОРЕНТЕС, ПП","ЦБ10111235","Волинська обл, м. Ковель, вул. Фестивальна, буд. № 2/В",{"$f":"VLOOKUP(C607,[1]Sheet1!$F:$G,2,0)","v":"Їжа Свіжа"}]
[606,"ФЛОРЕНТЕС, ПП","ЦБ10120754","Волинська обл, м. Володимир-Волинський, вул. Князя Василька, буд. № 1",{"$f":"VLOOKUP(C608,[1]Sheet1!$F:$G,2,0)","v":"М'ясомаркет"}]
[607,"ФЛОРЕНТЕС, ПП","ЦБ10213868","Волинська обл, Горохівський р-н, м. Горохів, вул. Луцька, буд. № 27",{"$f":"VLOOKUP(C609,[1]Sheet1!$F:$G,2,0)","v":"Їжа Свіжа"}]
[608,"ФЛОРЕНТЕС, ПП","ЦБ10225777","Волинська обл, м. Ковель, вул. Незалежності, буд. № 57",{"$f":"VLOOKUP(C610,[1]Sheet1!$F:$G,2,0)","v":"М'ясомаркет "}]
[609,"ФЛОРЕНТЕС, ПП","ЦБ30084996","м. Луцьк, вул. Винниченка, буд. № 24",{"$f":"VLOOKUP(C611,[1]Sheet1!$F:$G,2,0)","v":"Їжа Свіжа"}]
[610,"ФЛОРЕНТЕС, ПП","ЦБ30100849","м. Луцьк, вул. Соборності, буд. № 11В","Без бренду"]
[611,"ФЛОРЕНТЕС, ПП","ЦБ20055479","м. Львів, вул. Хмельницького Богдана, буд. № 225",{"$f":"VLOOKUP(C613,[1]Sheet1!$F:$G,2,0)","v":"М'ясомаркет"}]
[612,"ФЛОРЕНТЕС, ПП","ЦБ20059889","Львівська обл, Червоноградський р-н, м. Радехів, вул. Українки Лесі, буд. № 16",{"$f":"VLOOKUP(C614,[1]Sheet1!$F:$G,2,0)","v":"М'ясомаркет"}]
[613,"ФЛОРЕНТЕС, ПП","ЦБ20066653","Львівська обл, Яворівський р-н, м. Новояворівськ, вул. Бандери Степана, буд. № 30",{"$f":"VLOOKUP(C615,[1]Sheet1!$F:$G,2,0)","v":"Їжа Свіжа"}]
[614,"ФЛОРЕНТЕС, ПП","ЦБ20064113","Рівненська обл, Сарненський р-н, м. Сарни, вул. Соборна, буд. № 1",{"$f":"VLOOKUP(C616,[1]Sheet1!$F:$G,2,0)","v":"Їжа Свіжа"}]
[615,"ФЛОРЕНТЕС, ПП","ЦБ10228850","Волинська обл, Старовижівський р-н, смт Стара Вижівка, вул. Незалежності, буд. № 48г",{"$f":"VLOOKUP(C617,[1]Sheet1!$F:$G,2,0)","v":"М'ясомаркет"}]
[616,"ФЛОРЕНТЕС, ПП","ЦБ30081267","Львівська обл, м. Шептицький, просп. Шевченка, буд. № 5",{"$f":"VLOOKUP(C618,[1]Sheet1!$F:$G,2,0)","v":"Їжа Свіжа"}]
[617,"ФЛОРЕНТЕС, ПП","ЦБ30115833","Львівська обл, м. Шептицький, вул. Сокальська, буд. № 5/11В","Без бренду"]
[618,"ФЛОРЕНТЕС, ПП","ЦБ30111064","Львівська обл, Яворівський р-н, м. Яворів, вул. Гребля, буд. № 2","Без бренду"]
[619,"ФЛОРЕНТЕС, ПП","ЦБ10174025","Волинська обл, Камінь-Каширський р-н, м. Камінь-Каширський, вул. Шевченка, буд. № 14",{"$f":"VLOOKUP(C621,[1]Sheet1!$F:$G,2,0)","v":"Наша Ряба"}]
[620,"ФЛОРЕНТЕС, ПП","ЦБ10179559","Волинська обл, Маневицький р-н, смт Колки, вул. Грушевського, буд. № 34",{"$f":"VLOOKUP(C622,[1]Sheet1!$F:$G,2,0)","v":"Наша Ряба"}]
[621,"ФЛОРЕНТЕС, ПП","ЦБ10175343","Волинська обл, Любешівський р-н, смт Любешів, вул. Незалежності, буд. № 47",{"$f":"VLOOKUP(C623,[1]Sheet1!$F:$G,2,0)","v":"Наша Ряба"}]
[622,"ФЛОРЕНТЕС, ПП","ЦБ10175028","Волинська обл, Ратнівський р-н, смт Ратне, вул. Центральна, буд. № 20",{"$f":"VLOOKUP(C624,[1]Sheet1!$F:$G,2,0)","v":"Їжа Свіжа"}]
[623,"ФЛОРЕНТЕС, ПП","ЦБ20056249","м. Львів, вул. Кульпарківська, буд. № 174",{"$f":"VLOOKUP(C625,[1]Sheet1!$F:$G,2,0)","v":"Їжа Свіжа"}]
[624,"ФЛОРЕНТЕС, ПП","ЦБ20050953","Волинська обл, м. Володимир-Волинський, вул. Ковельська, буд. № 113",{"$f":"VLOOKUP(C626,[1]Sheet1!$F:$G,2,0)","v":"М'ясомаркет"}]
[625,"ФЛОРЕНТЕС, ПП","ЦБ20057478","Рівненська обл, м. Дубно, вул. Галицького Данила, буд. № 7",{"$f":"VLOOKUP(C627,[1]Sheet1!$F:$G,2,0)","v":"М'ясомаркет"}]
[626,"ФОП Гудзак Н.Д.","ЦБ20040024","м. Івано-Франківськ, вул. Коновальця, буд. № 100",{"$f":"VLOOKUP(C628,[1]Sheet1!$F:$G,2,0)","v":"М'ясомаркет"}]
[627,"ФУДСЕРВІС ТД, ТОВ","ЦБ20022363","Черкаська обл, Тальнівський р-н, м. Тальне, вул. Захисників України, буд. № 3",{"$f":"VLOOKUP(C629,[1]Sheet1!$F:$G,2,0)","v":"М'ясомаркет"}]
[628,"ФУДСЕРВІС ТД, ТОВ","ЦБ20078219","Черкаська обл, м. Канів, вул. Героїв Дніпра, буд. № 4",{"$f":"VLOOKUP(C630,[1]Sheet1!$F:$G,2,0)","v":"М'ясомаркет"}]
[629,"ФУДСЕРВІС ТД, ТОВ","ЦБ20022349","Черкаська обл, Звенигородський р-н, м. Звенигородка, вул. Шевченка, буд. № 74",{"$f":"VLOOKUP(C631,[1]Sheet1!$F:$G,2,0)","v":"Їжа Свіжа"}]
[630,"ФУДСЕРВІС ТД, ТОВ","ЦБ10166459","Черкаська обл, Шполянський р-н, м. Шпола, вул. Соборна, буд. № 103",{"$f":"VLOOKUP(C632,[1]Sheet1!$F:$G,2,0)","v":"Їжа Свіжа"}]
[631,"ФУДСЕРВІС ТД, ТОВ","ЦБ20022352","Черкаська обл, Кам'янський р-н, м. Кам'янка, вул. Нескореної нації, буд. № 29",{"$f":"VLOOKUP(C633,[1]Sheet1!$F:$G,2,0)","v":"Їжа Свіжа"}]
[632,"ФУДСЕРВІС ТД, ТОВ","ЦБ20022329","Черкаська обл, Лисянський р-н, смт Лисянка, вул. Незалежності, буд. № 1",{"$f":"VLOOKUP(C634,[1]Sheet1!$F:$G,2,0)","v":"Їжа Свіжа"}]
[633,"ФУДСЕРВІС ТД, ТОВ","ЦБ20021418","Черкаська обл, м. Ватутіне, вул. Ювілейна, буд. № 1Л",{"$f":"VLOOKUP(C635,[1]Sheet1!$F:$G,2,0)","v":"М'ясомаркет"}]
[634,"ФУДСЕРВІС ТД, ТОВ","ЦБ20068803","Черкаська обл, м. Сміла, вул. Хмельницького Богдана, напроти будинку №46Б",{"$f":"VLOOKUP(C636,[1]Sheet1!$F:$G,2,0)","v":"М'ясомаркет"}]
[635,"ФУДСЕРВІС ТД, ТОВ","ЦБ10158468","Черкаська обл, м. Сміла, вул. Репіна, буд. № 55",{"$f":"VLOOKUP(C637,[1]Sheet1!$F:$G,2,0)","v":"Їжа Свіжа"}]
[636,"ФУДСЕРВІС ТД, ТОВ","ЦБ20022318","Черкаська обл, Шполянський р-н, м. Шпола, вул. Соборна, буд. № 43А",{"$f":"VLOOKUP(C638,[1]Sheet1!$F:$G,2,0)","v":"Їжа Свіжа"}]
[637,"ФУДСЕРВІС ТД, ТОВ","ЦБ10162227","Черкаська обл, Городищенський р-н, м. Городище, вул. Миру, буд. № 115",{"$f":"VLOOKUP(C639,[1]Sheet1!$F:$G,2,0)","v":"Їжа Свіжа"}]
[638,"ФУДСЕРВІС ТД, ТОВ","ЦБ10145352","Черкаська обл, м. Золотоноша, вул. Шевченко, буд. № 96",{"$f":"VLOOKUP(C640,[1]Sheet1!$F:$G,2,0)","v":"М'ясомаркет"}]
[639,"ФУДСЕРВІС ТД, ТОВ","ЦБ20011150","Черкаська обл, Корсунь-Шевченківський р-н, смт Стеблів, вул. Міцерука, буд. № 1",{"$f":"VLOOKUP(C641,[1]Sheet1!$F:$G,2,0)","v":"Їжа Свіжа"}]
[640,"ФУДСЕРВІС ТД, ТОВ","ЦБ20086949","Черкаська обл, м. Умань, вул. Небесної Сотні, буд. № 47",{"$f":"VLOOKUP(C642,[1]Sheet1!$F:$G,2,0)","v":"Їжа Свіжа"}]
[641,"ФУДСЕРВІС ТД, ТОВ","ЦБ20022362","Черкаська обл, Шполянський р-н, м. Шпола, вул. Мар'янівська, буд. № 1","Без бренду"]
[642,"ФУДСЕРВІС ТД, ТОВ","ЦБ20090094","Черкаська обл, м. Умань, пл. Івангородська, буд. № 1А",{"$f":"VLOOKUP(C644,[1]Sheet1!$F:$G,2,0)","v":"Їжа Свіжа"}]
[643,"ФУДСЕРВІС ТД, ТОВ","ЦБ20089317","Черкаська обл, Уманський р-н, м. Христинівка, вул. Українська, буд. № 7",{"$f":"VLOOKUP(C645,[1]Sheet1!$F:$G,2,0)","v":"Їжа Свіжа"}]
[644,"Халілова І.М., ФОП","ЦБ10032398","м. Київ, вул. Вишгородська, буд. № 56/2",{"$f":"VLOOKUP(C646,[1]Sheet1!$F:$G,2,0)","v":"Українське курча"}]
[645,"Циз Сергій Костянтинович, ФОП","ЦБ10240154","Миколаївська обл, м. Вознесенськ, вул. Центральна, буд. № 29",{"$f":"VLOOKUP(C647,[1]Sheet1!$F:$G,2,0)","v":"Наша Ряба"}]
[646,"Циз Сергій Костянтинович, ФОП","ЦБ10016119","Миколаївська обл, м. Вознесенськ, вул. Центральна, буд. № 6/45,  рнк.\"Центральний\"",{"$f":"VLOOKUP(C648,[1]Sheet1!$F:$G,2,0)","v":"Їжа Свіжа"}]
[647,"Циз Сергій Костянтинович, ФОП","ЦБ10232038","Миколаївська обл, м. Вознесенськ, вул. Челюскинцев, буд. № 17",{"$f":"VLOOKUP(C649,[1]Sheet1!$F:$G,2,0)","v":"Їжа Свіжа"}]
[648,"Циз Сергій Костянтинович, ФОП","ЦБ10016118","Миколаївська обл, м. Вознесенськ, вул. Героїв України, буд. № 10/50, корп. 100",{"$f":"VLOOKUP(C650,[1]Sheet1!$F:$G,2,0)","v":"Їжа Свіжа"}]
[649,"Чиклікчи Вероніка Сергіївна, ФОП","ЦБ20081573","Одеська обл, Білгород-Дністровський р-н, с. Зоря, вул. Троїцька, буд. № 148, супермаркет \"Леко\"",{"$f":"VLOOKUP(C651,[1]Sheet1!$F:$G,2,0)","v":"Їжа Свіжа"}]